{"text_format":"1","workbook":"xlsx","n_sheets":1,"sheets":["ÇALIŞMA RUHSATI"],"not_rendered":{"charts":0,"images":0,"macros":1,"external_links":0,"defined_names":12,"comments":0,"pivot_tables":0},"unopened":[],"bounds":{"document_bytes":16777216,"sheet_cells":100000,"rows_first":2000,"rows_last":500,"rows_between":2000,"halvings":0,"cell_chars":16384,"cell_head_chars":4096},"cells_cut":0,"cells_raw":0,"read":"whole","date_system":"1900"}

{"sheet":"ÇALIŞMA RUHSATI","index":0,"n_rows":1000,"n_cols":20,"rows_kept":1000,"cut":false,"hidden":false,"merged":[]}
[null,"Güncelleme Tarihi :","2025-04-28T08:43:58",null,null,null,null,null,null,null,null,null,null,null,null,null,null,null,"X"]
["S.N","Firma","İlk Veriliş Tarihi","Son Geçerlilik Tarihi","Havalimanı","TEMSİL","GÖZETİM VE YÖNETİM","RAMP","YOLCU HİZMETLERİ","KARGO VE POSTA","YÜK KONTROLÜ VE HABERLEŞME","İKRAM","UÇAK ÖZEL GÜVENLİK HİZMET VE DENETİMİ","UÇAK HAT BAKIM","UÇUŞ OPERASYON","ULAŞIM","Ruhsat No","Ruhsat Grubu","İç/Dış","Ruhsat Türü"]
[{"$f":"IF(ISTEXT(B3),A1+1,\"\")","v":1},"TÜRK HAVA YOLLARI ANONİM ORTAKLIĞI","1996-01-22","2027-01-21","KARS HARAKANİ HAVALİMANI",null,null,"X","X","X","X",null,null,"X",null,null,"BİÇ.221","B Grubu","İç","Daimi"]
[{"$f":"IF(ISTEXT(B4),A3+1,\"\")","v":2},"TÜRK HAVA YOLLARI ANONİM ORTAKLIĞI","1996-03-27","2026-03-26","ANTALYA HAVALİMANI",null,null,null,null,null,null,null,null,null,"X",null,"BDIŞ.165","B Grubu","Dış","Daimi"]
[{"$f":"IF(ISTEXT(B5),A4+1,\"\")","v":3},"HAVAALANLARI YER HİZMETLERİ A.Ş.(HAVAŞ)","1996-04-05","2026-04-04","ANKARA ESENBOĞA HAVALİMANI",null,null,null,null,null,null,null,null,null,null,"X","ADIŞ.001","A Grubu","Dış","Daimi"]
[4,"ACM-AIR CHARTER MARKET UÇAK SERVİSİ VE TURİZM HİZMETLERİ LİMİTED ŞİRKETİ","1996-07-10","2026-07-09","ANTALYA HAVALİMANI",null,"X",null,null,null,null,null,null,null,null,null,"CDIŞ.022","C Grubu","Dış","Daimi"]
[5,"ACM-AIR CHARTER MARKET UÇAK SERVİSİ VE TURİZM HİZMETLERİ LİMİTED ŞİRKETİ","1996-07-10","2026-07-09","İZMİR ADNAN MENDERES HAVALİMANI",null,"X",null,null,null,null,null,null,null,null,null,"CDIŞ.021","C Grubu","Dış","Daimi"]
[6,"ACM-AIR CHARTER MARKET UÇAK SERVİSİ VE TURİZM HİZMETLERİ LİMİTED ŞİRKETİ","1996-07-10","2026-07-09","ANKARA ESENBOĞA HAVALİMANI",null,"X",null,null,null,null,null,null,null,null,null,"CDIŞ.024","C Grubu","Dış","Daimi"]
[7,"ACM-AIR CHARTER MARKET UÇAK SERVİSİ VE TURİZM HİZMETLERİ LİMİTED ŞİRKETİ","1996-07-10","2026-07-09","TÜM HAVALİMANLARI","X",null,null,null,null,null,null,null,null,null,null,"CDIŞ.020","C Grubu","Dış","Daimi"]
[8,"TÜRK HAVA YOLLARI ANONİM ORTAKLIĞI","1996-09-26","2026-09-25","ERZURUM HAVALİMANI",null,null,"X","X","X","X",null,null,"X","X",null,"BİÇ.224","B Grubu","İç","Daimi"]
[9,"TÜRK HAVA YOLLARI ANONİM ORTAKLIĞI","1996-09-26","2026-09-25","GAZİANTEP HAVALİMANI",null,null,"X","X","X","X",null,null,"X","X",null,"BİÇ.225","B Grubu","İç","Daimi"]
[10,"TÜRK HAVA YOLLARI ANONİM ORTAKLIĞI","1996-09-26","2026-09-25","ELAZIĞ HAVALİMANI",null,null,"X","X","X","X",null,null,"X","X",null,"BİÇ.223","B Grubu","İç","Daimi"]
[11,"TÜRK HAVA YOLLARI ANONİM ORTAKLIĞI","1996-09-26","2026-09-25","DİYARBAKIR HAVALİMANI",null,null,"X","X","X","X",null,null,"X","X",null,"BİÇ.222","B Grubu","İç","Daimi"]
[12,"TÜRK HAVA YOLLARI ANONİM ORTAKLIĞI","1996-09-26","2026-09-25","MALATYA HAVALİMANI",null,null,"X","X","X","X",null,null,"X","X",null,"BİÇ.226","B Grubu","İç","Daimi"]
[13,"TÜRK HAVA YOLLARI ANONİM ORTAKLIĞI","1996-09-26","2026-09-25","VAN FERİT MELEN HAVALİMANI",null,null,"X","X","X","X",null,null,"X","X",null,"BİÇ.229","B Grubu","İç","Daimi"]
[14,"TÜRK HAVA YOLLARI ANONİM ORTAKLIĞI","1996-09-26","2026-09-25","TRABZON HAVALİMANI",null,null,"X","X","X","X",null,null,"X","X",null,"BİÇ.228","B Grubu","İç","Daimi"]
[15,"TÜRK HAVA YOLLARI ANONİM ORTAKLIĞI","1996-09-26","2026-09-25","SAMSUN ÇARŞAMBA HAVALİMANI",null,null,"X","X","X","X",null,null,"X","X",null,"BİÇ.227","B Grubu","İç","Daimi"]
[16,"CASIO AIR SERVİS HİZMETLERİ DIŞ TİC.LTD.ŞTİ.","1997-01-19","2027-01-18","TÜM HAVALİMANLARI","X",null,null,null,null,null,null,null,null,null,null,"CDIŞ.380","C Grubu","Dış","Daimi"]
[17,"CASIO AIR SERVİS HİZMETLERİ DIŞ TİC.LTD.ŞTİ.","1997-01-19","2027-01-18","İSTANBUL HAVALİMANI",null,"X",null,null,null,null,null,null,null,null,null,"CDIŞ.444","C Grubu","Dış","Daimi"]
[18,"MAPLE GROUP HAVACILIK TURİZM DIŞ TİCARET ANONİM ŞİRKETİ","1997-02-17","2027-02-16","İSTANBUL HAVALİMANI",null,"X",null,null,null,null,null,null,null,null,null,"CDIŞ.456","C Grubu","Dış","Daimi"]
[19,"MAPLE GROUP HAVACILIK TURİZM DIŞ TİCARET ANONİM ŞİRKETİ","1997-02-17","2027-02-16","TÜM HAVALİMANLARI","X",null,null,null,null,null,null,null,null,null,null,"CDIŞ.427","C Grubu","Dış","Daimi"]
[20,"ACM-AIR CHARTER MARKET UÇAK SERVİSİ VE TURİZM HİZMETLERİ LİMİTED ŞİRKETİ","1997-05-06","2025-05-05","İSTANBUL HAVALİMANI",null,"X",null,null,null,null,null,null,null,null,null,"CDIŞ.437","C Grubu","Dış","Daimi"]
[21,"ADRİYATİK TAŞIMACILIK DIŞ TİCARET LİMİTED ŞİRKETİ","1997-05-07","2025-05-06","İSTANBUL HAVALİMANI",null,"X",null,null,null,null,null,null,null,null,null,"CDIŞ.439","C Grubu","Dış","Daimi"]
[22,"ADRİYATİK TAŞIMACILIK DIŞ TİCARET LİMİTED ŞİRKETİ","1997-05-07","2025-05-06","TÜM HAVALİMANLARI","X",null,null,null,null,null,null,null,null,null,null,"CDIŞ.042","C Grubu","Dış","Daimi"]
[23,"ÇELEBİ HAVA SERVİSİ ANONİM ŞİRKETİ","1997-05-30","2025-05-29","MUĞLA DALAMAN HAVALİMANI",null,null,"X","X","X","X",null,null,null,null,null,"ADIŞ.182","A Grubu","Dış","Daimi"]
[24,"HAVAALANLARI YER HİZMETLERİ A.Ş.(HAVAŞ)","1997-06-09","2025-06-08","MUĞLA MİLAS-BODRUM HAVALİMANI",null,null,"X","X","X","X",null,null,null,"X","X","ADIŞ.149","A Grubu","Dış","Daimi"]
[25,"ÇELEBİ HAVA SERVİSİ ANONİM ŞİRKETİ","1997-06-19","2025-06-18","MUĞLA MİLAS-BODRUM HAVALİMANI",null,null,"X","X","X","X",null,null,null,null,null,"ADIŞ.183","A Grubu","Dış","Daimi"]
[26,"AKUA-TRANS TURİZM HAVACILIK LİMİTED ŞİRKETİ","1997-07-31","2025-07-30","İSTANBUL HAVALİMANI",null,"X",null,null,null,null,null,null,null,null,null,"CDIŞ.442","C Grubu","Dış","Daimi"]
[27,"AKUA-TRANS TURİZM HAVACILIK LİMİTED ŞİRKETİ","1997-07-31","2025-07-30","TÜM HAVALİMANLARI","X",null,null,null,null,null,null,null,null,null,null,"CDIŞ.085","C Grubu","Dış","Daimi"]
[28,"BİLEN HAVACILIK LİMİTED ŞİRKETİ","1997-08-01","2025-07-31","İSTANBUL HAVALİMANI",null,"X",null,null,null,null,null,null,null,null,null,"CDIŞ.459","C Grubu","Dış","Daimi"]
[29,"GÖZEN HAVACILIK VE TİCARET ANONİM ŞİRKETİ","1997-08-20","2025-08-19","İZMİR ADNAN MENDERES HAVALİMANI",null,"X",null,null,null,null,null,null,null,null,null,"CDIŞ.051","C Grubu","Dış","Daimi"]
[30,"GÖZEN HAVACILIK VE TİCARET ANONİM ŞİRKETİ","1997-08-20","2025-08-19","MUĞLA DALAMAN HAVALİMANI",null,"X",null,null,null,null,null,null,null,null,null,"CDIŞ.054","C Grubu","Dış","Daimi"]
[31,"GÖZEN HAVACILIK VE TİCARET ANONİM ŞİRKETİ","1997-08-20","2025-08-19","ANTALYA HAVALİMANI",null,"X",null,null,null,null,null,null,null,null,null,"CDIŞ.052","C Grubu","Dış","Daimi"]
[32,"GÖZEN HAVACILIK VE TİCARET ANONİM ŞİRKETİ","1997-08-20","2025-08-19","İSTANBUL HAVALİMANI",null,"X",null,null,null,null,null,null,null,null,null,"CDIŞ.448","C Grubu","Dış","Daimi"]
[33,"GÖZEN HAVACILIK VE TİCARET ANONİM ŞİRKETİ","1997-08-20","2025-08-19","TÜM HAVALİMANLARI","X",null,null,null,null,null,null,null,null,null,null,"CDIŞ.055","C Grubu","Dış","Daimi"]
[34,"GÖZEN HAVACILIK VE TİCARET ANONİM ŞİRKETİ","1997-09-01","2025-08-31","MUĞLA MİLAS-BODRUM HAVALİMANI",null,"X",null,null,null,null,null,null,null,null,null,"CDIŞ.069","C Grubu","Dış","Daimi"]
[35,"HAVAALANLARI YER HİZMETLERİ A.Ş.(HAVAŞ)","1997-09-26","2025-09-25","İZMİR ADNAN MENDERES HAVALİMANI",null,"X","X","X","X","X",null,null,null,null,null,"ADIŞ.150","A Grubu","Dış","Daimi"]
[36,"HAVAALANLARI YER HİZMETLERİ A.Ş.(HAVAŞ)","1997-09-26","2025-09-25","ANTALYA HAVALİMANI",null,"X","X","X","X","X",null,null,null,null,null,"ADIŞ.151","A Grubu","Dış","Daimi"]
[37,"HAVAALANLARI YER HİZMETLERİ A.Ş.(HAVAŞ)","1997-09-26","2025-09-25","MUĞLA DALAMAN HAVALİMANI",null,"X","X","X","X","X",null,null,null,null,null,"ADIŞ.152","A Grubu","Dış","Daimi"]
[38,"HAVAALANLARI YER HİZMETLERİ A.Ş.(HAVAŞ)","1997-09-26","2025-09-25","ANKARA ESENBOĞA HAVALİMANI",null,"X","X","X","X","X",null,null,null,null,null,"ADIŞ.153","A Grubu","Dış","Daimi"]
[39,"HAVAALANLARI YER HİZMETLERİ A.Ş.(HAVAŞ)","1997-09-26","2025-09-25","İSTANBUL HAVALİMANI",null,"X","X","X","X","X",null,null,null,null,null,"ADIŞ.214","A Grubu","Dış","Daimi"]
[40,"HAVAALANLARI YER HİZMETLERİ A.Ş.(HAVAŞ)","1997-09-26","2025-09-25","TÜM HAVALİMANLARI","X",null,null,null,null,null,null,null,null,null,null,"ADIŞ.010","A Grubu","Dış","Daimi"]
[41,"TÜRK HAVA YOLLARI ANONİM ORTAKLIĞI","1997-09-26","2025-09-25","ANKARA ESENBOĞA HAVALİMANI",null,null,null,null,null,null,null,null,"X","X",null,"BDIŞ.170","B Grubu","Dış","Daimi"]
[42,"TÜRK HAVA YOLLARI ANONİM ORTAKLIĞI","1997-09-26","2025-09-25","İZMİR ADNAN MENDERES HAVALİMANI",null,null,null,null,null,null,null,null,"X","X",null,"BDIŞ.166","B Grubu","Dış","Daimi"]
[43,"TÜRK HAVA YOLLARI ANONİM ORTAKLIĞI","1997-09-26","2025-09-25","MUĞLA DALAMAN HAVALİMANI",null,null,null,"X",null,"X",null,null,"X",null,null,"BDIŞ.048","B Grubu","Dış","Daimi"]
[44,"GÜNEŞ EKSPRES  HAVACILIK A.Ş. (SUNEXPRESS)","1997-09-26","2025-09-25","ANTALYA HAVALİMANI",null,null,null,null,null,null,null,null,"X","X",null,"BDIŞ.043","B Grubu","Dış","Daimi"]
[45,"TÜRK HAVA YOLLARI ANONİM ORTAKLIĞI","1997-09-26","2025-09-25","ANTALYA HAVALİMANI",null,null,null,null,null,null,null,null,"X",null,null,"BDIŞ.168","B Grubu","Dış","Daimi"]
[46,"TÜRK HAVA YOLLARI ANONİM ORTAKLIĞI","1997-09-26","2025-09-25","İSTANBUL HAVALİMANI",null,null,null,null,null,null,null,null,"X","X",null,"BDIŞ.254","B Grubu","Dış","Daimi"]
[47,"İRAN İSLAM CUMHURİYETİ HAVAYOLLARI","1997-10-01","2025-09-30","İSTANBUL HAVALİMANI",null,null,null,"X",null,"X",null,null,null,null,null,"BDIŞ.250","B Grubu","Dış","Daimi"]
[48,"SAUDIA ARABIAN AIRLINES","1997-10-01","2025-09-30","İSTANBUL HAVALİMANI",null,null,null,"X",null,"X",null,null,null,null,null,"BDIŞ.252","B Grubu","Dış","Daimi"]
[49,"ÇELEBİ HAVA SERVİSİ ANONİM ŞİRKETİ","1997-10-01","2025-09-30","ANKARA ESENBOĞA HAVALİMANI",null,null,"X","X","X","X",null,null,null,null,null,"ADIŞ.187","A Grubu","Dış","Daimi"]
[50,"ÇELEBİ HAVA SERVİSİ ANONİM ŞİRKETİ","1997-10-01","2025-09-30","ANTALYA HAVALİMANI",null,null,"X","X","X","X",null,null,null,null,null,"ADIŞ.186","A Grubu","Dış","Daimi"]
[51,"ÇELEBİ HAVA SERVİSİ ANONİM ŞİRKETİ","1997-10-01","2025-09-30","İZMİR ADNAN MENDERES HAVALİMANI",null,null,"X","X","X","X",null,null,null,null,null,"ADIŞ.185","A Grubu","Dış","Daimi"]
[52,"ÇELEBİ HAVA SERVİSİ ANONİM ŞİRKETİ","1997-10-01","2025-09-30","İSTANBUL HAVALİMANI",null,null,"X","X","X","X",null,null,null,null,null,"ADIŞ.217","A Grubu","Dış","Daimi"]
[53,"ÇELEBİ HAVA SERVİSİ ANONİM ŞİRKETİ","1997-10-01","2025-09-30","TÜM HAVALİMANLARI","X",null,null,null,null,null,null,null,null,null,null,"ADIŞ.015","A Grubu","Dış","Daimi"]
[54,"TÜRK HAVA YOLLARI ANONİM ORTAKLIĞI","1997-10-08","2025-10-07","MUĞLA MİLAS-BODRUM HAVALİMANI",null,null,null,"X",null,"X",null,null,"X","X",null,"BDIŞ.061","B Grubu","Dış","Daimi"]
[55,"GÖZEN HAVACILIK VE TİCARET ANONİM ŞİRKETİ","1997-10-09","2025-10-08","ANKARA ESENBOĞA HAVALİMANI",null,"X",null,null,null,null,null,null,null,null,null,"CDIŞ.068","C Grubu","Dış","Daimi"]
[56,"HAVAALANLARI YER HİZMETLERİ A.Ş.(HAVAŞ)","1997-12-21","2025-12-20","TRABZON HAVALİMANI",null,null,"X","X","X","X",null,null,null,null,null,"ADIŞ.155","A Grubu","Dış","Daimi"]
[57,"HAVAALANLARI YER HİZMETLERİ A.Ş.(HAVAŞ)","1998-03-26","2026-03-25","ANTALYA HAVALİMANI",null,null,null,null,null,null,null,null,null,null,"X","ADIŞ.021","A Grubu","Dış","Daimi"]
[58,"HAVAALANLARI YER HİZMETLERİ A.Ş.(HAVAŞ)","1998-03-26","2026-03-25","İZMİR ADNAN MENDERES HAVALİMANI",null,null,null,null,null,null,null,null,null,null,"X","ADIŞ.020","A Grubu","Dış","Daimi"]
[59,"HAVAALANLARI YER HİZMETLERİ A.Ş.(HAVAŞ)","1998-03-26","2026-03-25","İSTANBUL HAVALİMANI",null,null,null,null,null,null,null,null,null,null,"X","ADIŞ.212","A Grubu","Dış","Daimi"]
[60,"MNG HAVAYOLLARI VE TAŞIMACILIK ANONİM ŞİRKETİ","1998-10-22","2026-10-21","İSTANBUL HAVALİMANI",null,null,null,null,null,null,null,null,"X",null,null,"BDIŞ.245","B Grubu","Dış","Daimi"]
[61,"TÜRK HAVA YOLLARI ANONİM ORTAKLIĞI","1999-01-13","2027-01-12","SİVAS NURİ DEMİRAĞ HAVALİMANI",null,null,"X","X","X","X",null,null,"X","X",null,"BİÇ.230","B Grubu","İç","Daimi"]
[62,"TÜRK HAVA YOLLARI ANONİM ORTAKLIĞI","1999-01-13","2027-01-12","MUŞ SULTAN ALPARSLAN HAVALİMANI",null,null,"X","X","X","X",null,null,"X","X",null,"BİÇ.232","B Grubu","İç","Daimi"]
[63,"TÜRK HAVA YOLLARI ANONİM ORTAKLIĞI","1999-01-13","2027-01-12","ERZİNCAN YILDIRIM AKBULUT HAVALİMANI",null,null,"X","X","X","X",null,null,"X","X",null,"BİÇ.231","B Grubu","İç","Daimi"]
[64,"TÜRK HAVA YOLLARI ANONİM ORTAKLIĞI","1999-01-13","2027-01-12","DENİZLİ ÇARDAK HAVALİMANI",null,null,"X","X","X","X",null,null,"X","X",null,"BİÇ.233","B Grubu","İç","Daimi"]
[65,"F.L.Y HAVA KARGO SERVİS HAVACILIK VE TURİZM HİZMETLERİ LİMİTED ŞİRKETİ","1999-03-09","2027-03-08","İSTANBUL HAVALİMANI",null,"X",null,null,null,null,null,null,null,null,null,"CDIŞ.445","C Grubu","Dış","Daimi"]
[66,"GÖZEN HAVACILIK VE TİCARET ANONİM ŞİRKETİ","1999-09-10","2025-09-09","TEKİRDAĞ ÇORLU ATATÜRK HAVALİMANI",null,"X",null,null,null,null,null,null,null,null,null,"CDIŞ.090","C Grubu","Dış","Daimi"]
[{"$f":"IF(ISTEXT(B69),A68+1,\"\")","v":67},"F.L.Y HAVA KARGO SERVİS HAVACILIK VE TURİZM HİZMETLERİ LİMİTED ŞİRKETİ","2000-08-07","2026-08-06","ANTALYA HAVALİMANI",null,"X",null,null,null,null,null,null,null,null,null,"CDIŞ.104","C Grubu","Dış","Daimi"]
[68,"F.L.Y HAVA KARGO SERVİS HAVACILIK VE TURİZM HİZMETLERİ LİMİTED ŞİRKETİ","2000-08-07","2026-08-06","TEKİRDAĞ ÇORLU ATATÜRK HAVALİMANI",null,"X",null,null,null,null,null,null,null,null,null,"CDIŞ.105","C Grubu","Dış","Daimi"]
[69,"AKUA-TRANS TURİZM HAVACILIK LİMİTED ŞİRKETİ","2002-02-04","2026-02-03","BURSA YENİŞEHİR HAVALİMANI",null,"X",null,null,null,null,null,null,null,null,null,"CDIŞ.116","C Grubu","Dış","Daimi"]
[70,"AKUA-TRANS TURİZM HAVACILIK LİMİTED ŞİRKETİ","2002-02-04","2026-02-03","TEKİRDAĞ ÇORLU ATATÜRK HAVALİMANI",null,"X",null,null,null,null,null,null,null,null,null,"CDIŞ.115","C Grubu","Dış","Daimi"]
[71,"AKUA-TRANS TURİZM HAVACILIK LİMİTED ŞİRKETİ","2002-02-04","2026-02-03","KAPADOKYA HAVALİMANI",null,"X",null,null,null,null,null,null,null,null,null,"CDIŞ.114","C Grubu","Dış","Daimi"]
[72,"AKUA-TRANS TURİZM HAVACILIK LİMİTED ŞİRKETİ","2002-02-04","2026-02-03","SAMSUN ÇARŞAMBA HAVALİMANI",null,"X",null,null,null,null,null,null,null,null,null,"CDIŞ.117","C Grubu","Dış","Daimi"]
[73,"F.L.Y HAVA KARGO SERVİS HAVACILIK VE TURİZM HİZMETLERİ LİMİTED ŞİRKETİ","2002-06-12","2026-06-11","KAPADOKYA HAVALİMANI",null,"X",null,null,null,null,null,null,null,null,null,"CDIŞ.121","C Grubu","Dış","Daimi"]
[74,"F.L.Y HAVA KARGO SERVİS HAVACILIK VE TURİZM HİZMETLERİ LİMİTED ŞİRKETİ","2002-06-12","2026-06-11","BURSA YENİŞEHİR HAVALİMANI",null,"X",null,null,null,null,null,null,null,null,null,"CDIŞ.122","C Grubu","Dış","Daimi"]
[75,"MNG HAVAYOLLARI VE TAŞIMACILIK ANONİM ŞİRKETİ","2002-07-18","2026-07-17","İSTANBUL HAVALİMANI",null,null,null,null,null,"X",null,null,null,"X",null,"BDIŞ.246","B Grubu","Dış","Daimi"]
[76,"MNG HAVAYOLLARI VE TAŞIMACILIK ANONİM ŞİRKETİ","2002-09-19","2025-09-18","İSTANBUL HAVALİMANI",null,null,"X",null,null,null,null,null,null,null,null,"BDIŞ.247","B Grubu","Dış","Daimi"]
[77,"F.L.Y HAVA KARGO SERVİS HAVACILIK VE TURİZM HİZMETLERİ LİMİTED ŞİRKETİ","2003-05-26","2025-05-25","MUĞLA DALAMAN HAVALİMANI",null,"X",null,null,null,null,null,null,null,null,null,"CDIŞ.126","C Grubu","Dış","Daimi"]
[78,"ADRİYATİK TAŞIMACILIK DIŞ TİCARET LİMİTED ŞİRKETİ","2003-09-15","2025-09-14","ANTALYA HAVALİMANI",null,"X",null,null,null,null,null,null,null,null,null,"CDIŞ.127","C Grubu","Dış","Daimi"]
[79,"HAVAALANLARI YER HİZMETLERİ A.Ş.(HAVAŞ)","2003-11-17","2025-11-16","MUĞLA DALAMAN HAVALİMANI",null,null,null,null,null,null,null,null,null,null,"X","ADIŞ.027","A Grubu","Dış","Daimi"]
[80,"ÇELEBİ HAVA SERVİSİ ANONİM ŞİRKETİ","2003-12-24","2025-12-23","ERZURUM HAVALİMANI",null,null,"X","X","X","X",null,null,null,null,null,"ADIŞ.192","A Grubu","Dış","Daimi"]
[81,"ÇELEBİ HAVA SERVİSİ ANONİM ŞİRKETİ","2003-12-24","2025-12-23","TRABZON HAVALİMANI",null,null,"X","X","X","X",null,null,null,null,null,"ADIŞ.189","A Grubu","Dış","Daimi"]
[82,"ÇELEBİ HAVA SERVİSİ ANONİM ŞİRKETİ","2003-12-24","2025-12-23","SAMSUN ÇARŞAMBA HAVALİMANI",null,null,"X","X","X","X",null,null,null,null,null,"ADIŞ.191","A Grubu","Dış","Daimi"]
[83,"ÇELEBİ HAVA SERVİSİ ANONİM ŞİRKETİ","2003-12-24","2025-12-23","DİYARBAKIR HAVALİMANI",null,null,"X","X","X","X",null,null,null,null,null,"ADIŞ.193","A Grubu","Dış","Daimi"]
[84,"ÇELEBİ HAVA SERVİSİ ANONİM ŞİRKETİ","2003-12-24","2025-12-23","KAYSERİ HAVALİMANI",null,null,"X","X","X","X",null,null,null,null,null,"ADIŞ.190","A Grubu","Dış","Daimi"]
[85,"HAVAALANLARI YER HİZMETLERİ A.Ş.(HAVAŞ)","2003-12-31","2025-12-30","KAYSERİ HAVALİMANI",null,null,"X","X","X","X",null,null,null,null,null,"ADIŞ.156","A Grubu","Dış","Daimi"]
[86,"TÜRK HAVA YOLLARI ANONİM ORTAKLIĞI","2004-01-13","2027-01-12","ŞANLIURFA GAP HAVALİMANI",null,null,"X","X","X","X",null,null,"X","X",null,"BİÇ.234","B Grubu","İç","Daimi"]
[87,"ADRİYATİK TAŞIMACILIK DIŞ TİCARET LİMİTED ŞİRKETİ","2004-03-10","2026-03-09","KAPADOKYA HAVALİMANI",null,"X",null,null,null,null,null,null,null,null,null,"CDIŞ.129","C Grubu","Dış","Daimi"]
[88,"ADRİYATİK TAŞIMACILIK DIŞ TİCARET LİMİTED ŞİRKETİ","2004-03-10","2026-03-09","BURSA YENİŞEHİR HAVALİMANI",null,"X",null,null,null,null,null,null,null,null,null,"CDIŞ.130","C Grubu","Dış","Daimi"]
[89,"ADRİYATİK TAŞIMACILIK DIŞ TİCARET LİMİTED ŞİRKETİ","2004-03-10","2026-03-09","ERZURUM HAVALİMANI",null,"X",null,null,null,null,null,null,null,null,null,"CDIŞ.132","C Grubu","Dış","Daimi"]
[90,"ADRİYATİK TAŞIMACILIK DIŞ TİCARET LİMİTED ŞİRKETİ","2004-03-10","2026-03-09","TEKİRDAĞ ÇORLU ATATÜRK HAVALİMANI",null,"X",null,null,null,null,null,null,null,null,null,"CDIŞ.131","C Grubu","Dış","Daimi"]
[91,"MAPLE GROUP HAVACILIK TURİZM DIŞ TİCARET ANONİM ŞİRKETİ","2004-03-15","2026-03-14","TEKİRDAĞ ÇORLU ATATÜRK HAVALİMANI",null,"X",null,null,null,null,null,null,null,null,null,"CDIŞ.426","C Grubu","Dış","Daimi"]
[92,"MAPLE GROUP HAVACILIK TURİZM DIŞ TİCARET ANONİM ŞİRKETİ","2004-03-15","2026-03-14","KAPADOKYA HAVALİMANI",null,"X",null,null,null,null,null,null,null,null,null,"CDIŞ.425","C Grubu","Dış","Daimi"]
[93,"MAPLE GROUP HAVACILIK TURİZM DIŞ TİCARET ANONİM ŞİRKETİ","2004-03-15","2026-03-14","ISPARTA SÜLEYMAN DEMİREL HAVALİMANI",null,"X",null,null,null,null,null,null,null,null,null,"CDIŞ.420","C Grubu","Dış","Daimi"]
[94,"MAPLE GROUP HAVACILIK TURİZM DIŞ TİCARET ANONİM ŞİRKETİ","2004-03-15","2026-03-14","KAYSERİ HAVALİMANI",null,"X",null,null,null,null,null,null,null,null,null,"CDIŞ.422","C Grubu","Dış","Daimi"]
[95,"MAPLE GROUP HAVACILIK TURİZM DIŞ TİCARET ANONİM ŞİRKETİ","2004-03-15","2026-03-14","BURSA YENİŞEHİR HAVALİMANI",null,"X",null,null,null,null,null,null,null,null,null,"CDIŞ.419","C Grubu","Dış","Daimi"]
[96,"HAVAALANLARI YER HİZMETLERİ A.Ş.(HAVAŞ)","2006-06-20","2026-06-19","SAMSUN ÇARŞAMBA HAVALİMANI",null,null,null,null,null,null,null,null,null,null,"X","ADIŞ.045","A Grubu","Dış","Daimi"]
[97,"AIR MARK HAVACILIK TURİZM VE TAŞIMACILIK TİC.A.Ş.","2006-06-21","2026-06-20","TÜM HAVALİMANLARI","X",null,null,null,null,null,null,null,null,null,null,"CDIŞ.367","C Grubu","Dış","Daimi"]
[98,"AIR MARK HAVACILIK TURİZM VE TAŞIMACILIK TİC.A.Ş.","2006-06-21","2026-06-20","TEKİRDAĞ ÇORLU ATATÜRK HAVALİMANI",null,"X",null,null,null,null,null,null,null,null,null,"CDIŞ.369","C Grubu","Dış","Daimi"]
[99,"AIR MARK HAVACILIK TURİZM VE TAŞIMACILIK TİC.A.Ş.","2006-06-21","2026-06-20","İSTANBUL HAVALİMANI",null,"X",null,null,null,null,null,null,null,null,null,"CDIŞ.440","C Grubu","Dış","Daimi"]
[100,"PEGASUS HAVA TAŞIMACILIĞI ANONİM ŞİRKETİ","2006-06-28","2026-06-27","MUĞLA DALAMAN HAVALİMANI",null,null,null,null,null,null,null,null,"X",null,null,"BDIŞ.100","B Grubu","Dış","Daimi"]
[101,"PEGASUS HAVA TAŞIMACILIĞI ANONİM ŞİRKETİ","2006-06-28","2026-06-27","MUĞLA MİLAS-BODRUM HAVALİMANI",null,null,null,null,null,null,null,null,"X",null,null,"BDIŞ.101","B Grubu","Dış","Daimi"]
[102,"PEGASUS HAVA TAŞIMACILIĞI ANONİM ŞİRKETİ","2006-06-28","2026-06-27","İZMİR ADNAN MENDERES HAVALİMANI",null,null,null,null,null,null,null,null,"X",null,null,"BDIŞ.099","B Grubu","Dış","Daimi"]
[103,"PEGASUS HAVA TAŞIMACILIĞI ANONİM ŞİRKETİ","2006-06-28","2026-06-27","ANTALYA HAVALİMANI",null,null,null,null,null,null,null,null,"X",null,null,"BDIŞ.098","B Grubu","Dış","Daimi"]
[104,"PEGASUS HAVA TAŞIMACILIĞI ANONİM ŞİRKETİ","2006-06-28","2026-06-27","ANKARA ESENBOĞA HAVALİMANI",null,null,null,null,null,null,null,null,"X",null,null,"BDIŞ.102","B Grubu","Dış","Daimi"]
[105,"PEGASUS HAVA TAŞIMACILIĞI ANONİM ŞİRKETİ","2006-06-28","2026-06-27","TRABZON HAVALİMANI",null,null,null,null,null,null,null,null,"X",null,null,"BDIŞ.097","B Grubu","Dış","Daimi"]
[106,"F.L.Y HAVA KARGO SERVİS HAVACILIK VE TURİZM HİZMETLERİ LİMİTED ŞİRKETİ","2006-10-06","2026-10-05","MUĞLA MİLAS-BODRUM HAVALİMANI",null,"X",null,null,null,null,null,null,null,null,null,"CDIŞ.148","C Grubu","Dış","Daimi"]
[107,"GÜNEŞ EKSPRES  HAVACILIK A.Ş. (SUNEXPRESS)","2007-03-07","2027-03-06","İZMİR ADNAN MENDERES HAVALİMANI",null,null,null,null,null,null,null,null,"X",null,null,"BDIŞ.110","B Grubu","Dış","Daimi"]
[108,"THY DO & CO İKRAM HİZMETLERİ ANONİM ŞİRKETİ","2007-03-16","2027-03-15","MUĞLA DALAMAN HAVALİMANI",null,null,null,null,null,null,"X",null,null,null,null,"CDIŞ.154","C Grubu","Dış","Daimi"]
[109,"THY DO & CO İKRAM HİZMETLERİ ANONİM ŞİRKETİ","2007-03-16","2027-03-15","İZMİR ADNAN MENDERES HAVALİMANI",null,null,null,null,null,null,"X",null,null,null,null,"CDIŞ.152","C Grubu","Dış","Daimi"]
[110,"THY DO & CO İKRAM HİZMETLERİ ANONİM ŞİRKETİ","2007-03-16","2027-03-15","ANTALYA HAVALİMANI",null,null,null,null,null,null,"X",null,null,null,null,"CDIŞ.151","C Grubu","Dış","Daimi"]
[111,"THY DO & CO İKRAM HİZMETLERİ ANONİM ŞİRKETİ","2007-03-16","2027-03-15","ANKARA ESENBOĞA HAVALİMANI",null,null,null,null,null,null,"X",null,null,null,null,"CDIŞ.155","C Grubu","Dış","Daimi"]
[112,"THY DO & CO İKRAM HİZMETLERİ ANONİM ŞİRKETİ","2007-03-16","2027-03-15","TRABZON HAVALİMANI",null,null,null,null,null,null,"X",null,null,null,null,"CDIŞ.156","C Grubu","Dış","Daimi"]
[113,"THY DO & CO İKRAM HİZMETLERİ ANONİM ŞİRKETİ","2007-03-16","2027-03-15","MUĞLA MİLAS-BODRUM HAVALİMANI",null,null,null,null,null,null,"X",null,null,null,null,"CDIŞ.153","C Grubu","Dış","Daimi"]
[114,"THY DO & CO İKRAM HİZMETLERİ ANONİM ŞİRKETİ","2007-03-16","2027-03-15","İSTANBUL HAVALİMANI",null,null,null,null,null,null,"X",null,null,null,null,"CDIŞ.457","C Grubu","Dış","Daimi"]
[115,"HAVAALANLARI YER HİZMETLERİ A.Ş.(HAVAŞ)","2007-06-13","2025-06-12","GAZİANTEP HAVALİMANI",null,null,"X","X","X","X",null,null,null,null,null,"ADIŞ.158","A Grubu","Dış","Daimi"]
[116,"MERKÜR ULUSLARARASI TAŞIMACILIK TURİZM VE HAVACILIK ANONİM ŞİRKETİ","2008-01-09","2026-01-08","İSTANBUL HAVALİMANI",null,"X",null,null,null,null,null,null,null,null,null,"CDIŞ.450","C Grubu","Dış","Daimi"]
[117,"MERKÜR ULUSLARARASI TAŞIMACILIK TURİZM VE HAVACILIK ANONİM ŞİRKETİ","2008-01-09","2026-01-08","TEKİRDAĞ ÇORLU ATATÜRK HAVALİMANI",null,"X",null,null,null,null,null,null,null,null,null,"CDIŞ.164","C Grubu","Dış","Daimi"]
[118,"THY DO & CO İKRAM HİZMETLERİ ANONİM ŞİRKETİ","2008-02-14","2026-02-13","KAYSERİ HAVALİMANI",null,null,null,null,null,null,"X",null,null,null,null,"CDIŞ.166","C Grubu","Dış","Daimi"]
[119,"THY DO & CO İKRAM HİZMETLERİ ANONİM ŞİRKETİ","2008-02-14","2026-02-13","KONYA HAVALİMANI",null,null,null,null,null,null,"X",null,null,null,null,"CDIŞ.168","C Grubu","Dış","Daimi"]
[120,"THY DO & CO İKRAM HİZMETLERİ ANONİM ŞİRKETİ","2008-02-14","2026-02-13","KAPADOKYA HAVALİMANI",null,null,null,null,null,null,"X",null,null,null,null,"CDIŞ.165","C Grubu","Dış","Daimi"]
[121,"THY DO & CO İKRAM HİZMETLERİ ANONİM ŞİRKETİ","2008-02-14","2026-02-13","SAMSUN ÇARŞAMBA HAVALİMANI",null,null,null,null,null,null,"X",null,null,null,null,"CDIŞ.167","C Grubu","Dış","Daimi"]
[122,"AIR MARK HAVACILIK TURİZM VE TAŞIMACILIK TİC.A.Ş.","2008-03-07","2026-03-06","SAMSUN ÇARŞAMBA HAVALİMANI",null,"X",null,null,null,null,null,null,null,null,null,"CDIŞ.374","C Grubu","Dış","Daimi"]
[123,"AIR MARK HAVACILIK TURİZM VE TAŞIMACILIK TİC.A.Ş.","2008-03-07","2026-03-06","KAPADOKYA HAVALİMANI",null,"X",null,null,null,null,null,null,null,null,null,"CDIŞ.372","C Grubu","Dış","Daimi"]
[124,"AIR MARK HAVACILIK TURİZM VE TAŞIMACILIK TİC.A.Ş.","2008-03-07","2026-03-06","BURSA YENİŞEHİR HAVALİMANI",null,"X",null,null,null,null,null,null,null,null,null,"CDIŞ.375","C Grubu","Dış","Daimi"]
[125,"AIR MARK HAVACILIK TURİZM VE TAŞIMACILIK TİC.A.Ş.","2008-03-07","2026-03-06","GAZİANTEP HAVALİMANI",null,"X",null,null,null,null,null,null,null,null,null,"CDIŞ.370","C Grubu","Dış","Daimi"]
[126,"AIR MARK HAVACILIK TURİZM VE TAŞIMACILIK TİC.A.Ş.","2008-03-07","2026-03-06","ERZURUM HAVALİMANI",null,"X",null,null,null,null,null,null,null,null,null,"CDIŞ.371","C Grubu","Dış","Daimi"]
[127,"PEGASUS HAVA TAŞIMACILIĞI ANONİM ŞİRKETİ","2008-03-07","2026-03-06","İZMİR ADNAN MENDERES HAVALİMANI",null,null,null,"X",null,"X",null,null,null,"X",null,"BDIŞ.117","B Grubu","Dış","Daimi"]
[128,"AIR MARK HAVACILIK TURİZM VE TAŞIMACILIK TİC.A.Ş.","2008-03-07","2026-03-06","KAYSERİ HAVALİMANI",null,"X",null,null,null,null,null,null,null,null,null,"CDIŞ.373","C Grubu","Dış","Daimi"]
[129,"ÇELEBİ HAVA SERVİSİ ANONİM ŞİRKETİ","2008-03-19","2026-03-18","TEKİRDAĞ ÇORLU ATATÜRK HAVALİMANI",null,null,"X","X","X","X",null,null,null,null,null,"ADIŞ.194","A Grubu","Dış","Daimi"]
[130,"CASIO AIR SERVİS HİZMETLERİ DIŞ TİC.LTD.ŞTİ.","2008-04-03","2026-04-02","TEKİRDAĞ ÇORLU ATATÜRK HAVALİMANI",null,"X",null,null,null,null,null,null,null,null,null,"CDIŞ.184","C Grubu","Dış","Daimi"]
[{"$f":"IF(ISTEXT(B133),A132+1,\"\")","v":131},"CASIO AIR SERVİS HİZMETLERİ DIŞ TİC.LTD.ŞTİ.","2008-04-03","2026-04-02","ANTALYA HAVALİMANI",null,"X",null,null,null,null,null,null,null,null,null,"CDIŞ.183","C Grubu","Dış","Daimi"]
[132,"CASIO AIR SERVİS HİZMETLERİ DIŞ TİC.LTD.ŞTİ.","2008-04-03","2026-04-02","ERZURUM HAVALİMANI",null,"X",null,null,null,null,null,null,null,null,null,"CDIŞ.185","C Grubu","Dış","Daimi"]
[133,"CASIO AIR SERVİS HİZMETLERİ DIŞ TİC.LTD.ŞTİ.","2008-04-03","2026-04-02","BURSA YENİŞEHİR HAVALİMANI",null,"X",null,null,null,null,null,null,null,null,null,"CDIŞ.186","C Grubu","Dış","Daimi"]
[134,"BİLEN HAVACILIK LİMİTED ŞİRKETİ","2008-04-21","2026-04-20","TEKİRDAĞ ÇORLU ATATÜRK HAVALİMANI",null,"X",null,null,null,null,null,null,null,null,null,"CDIŞ.188","C Grubu","Dış","Daimi"]
[135,"GÖZEN GÜVENLİK HİZMETLERİ VE TİCARET ANONİM ŞİRKETİ","2008-05-26","2026-05-25","TEKİRDAĞ ÇORLU ATATÜRK HAVALİMANI",null,"X",null,null,null,null,null,null,null,null,null,"CDIŞ.189","C Grubu","Dış","Daimi"]
[136,"ACM-AIR CHARTER MARKET UÇAK SERVİSİ VE TURİZM HİZMETLERİ LİMİTED ŞİRKETİ","2008-06-18","2026-06-17","TEKİRDAĞ ÇORLU ATATÜRK HAVALİMANI",null,"X",null,null,null,null,null,null,null,null,null,"CDIŞ.191","C Grubu","Dış","Daimi"]
[137,"GÖZEN GÜVENLİK HİZMETLERİ VE TİCARET ANONİM ŞİRKETİ","2008-06-18","2026-06-17","ANTALYA HAVALİMANI",null,null,null,null,null,null,null,"X",null,null,null,"CDIŞ.190","C Grubu","Dış","Daimi"]
[138,"HAVAALANLARI YER HİZMETLERİ A.Ş.(HAVAŞ)","2008-06-20","2026-06-19","ŞANLIURFA GAP HAVALİMANI",null,null,null,null,null,null,null,null,null,null,"X","ADIŞ.049","A Grubu","Dış","Daimi"]
[139,"MAPLE GROUP HAVACILIK TURİZM DIŞ TİCARET ANONİM ŞİRKETİ","2008-06-26","2026-06-25","ANTALYA HAVALİMANI",null,"X",null,null,null,null,null,null,null,null,null,"CDIŞ.418","C Grubu","Dış","Daimi"]
[140,"F.L.Y HAVA KARGO SERVİS HAVACILIK VE TURİZM HİZMETLERİ LİMİTED ŞİRKETİ","2008-07-31","2026-07-30","TÜM HAVALİMANLARI","X",null,null,null,null,null,null,null,null,null,null,"CDIŞ.195","C Grubu","Dış","Daimi"]
[141,"F.L.Y HAVA KARGO SERVİS HAVACILIK VE TURİZM HİZMETLERİ LİMİTED ŞİRKETİ","2008-07-31","2026-07-30","İZMİR ADNAN MENDERES HAVALİMANI",null,"X",null,null,null,null,null,null,null,null,null,"CDIŞ.194","C Grubu","Dış","Daimi"]
[142,"F.L.Y HAVA KARGO SERVİS HAVACILIK VE TURİZM HİZMETLERİ LİMİTED ŞİRKETİ","2008-07-31","2026-07-30","ANKARA ESENBOĞA HAVALİMANI",null,"X",null,null,null,null,null,null,null,null,null,"CDIŞ.193","C Grubu","Dış","Daimi"]
[143,"BİLEN HAVACILIK LİMİTED ŞİRKETİ","2008-08-12","2026-08-11","ANKARA ESENBOĞA HAVALİMANI",null,"X",null,null,null,null,null,null,null,null,null,"CDIŞ.196","C Grubu","Dış","Daimi"]
[144,"BİLEN HAVACILIK LİMİTED ŞİRKETİ","2008-08-12","2026-08-11","TÜM HAVALİMANLARI","X",null,null,null,null,null,null,null,null,null,null,"CDIŞ.197","C Grubu","Dış","Daimi"]
[145,"GÖZEN HAVACILIK VE TİCARET ANONİM ŞİRKETİ","2008-08-14","2026-08-13","SAMSUN ÇARŞAMBA HAVALİMANI",null,"X",null,null,null,null,null,null,null,null,null,"CDIŞ.199","C Grubu","Dış","Daimi"]
[146,"GÖZEN HAVACILIK VE TİCARET ANONİM ŞİRKETİ","2008-08-14","2026-08-13","ERZURUM HAVALİMANI",null,"X",null,null,null,null,null,null,null,null,null,"CDIŞ.201","C Grubu","Dış","Daimi"]
[147,"GÖZEN HAVACILIK VE TİCARET ANONİM ŞİRKETİ","2008-08-14","2026-08-13","BURSA YENİŞEHİR HAVALİMANI",null,"X",null,null,null,null,null,null,null,null,null,"CDIŞ.198","C Grubu","Dış","Daimi"]
[148,"GÖZEN HAVACILIK VE TİCARET ANONİM ŞİRKETİ","2008-08-14","2026-08-13","KAYSERİ HAVALİMANI",null,"X",null,null,null,null,null,null,null,null,null,"CDIŞ.202","C Grubu","Dış","Daimi"]
[149,"TÜRK HAVA YOLLARI ANONİM ORTAKLIĞI","2008-09-01","2026-08-31","BATMAN HAVALİMANI",null,null,"X","X","X","X",null,null,"X","X",null,"BİÇ.242","B Grubu","İç","Daimi"]
[150,"HAVAALANLARI YER HİZMETLERİ A.Ş.(HAVAŞ)","2008-09-03","2026-09-02","BATMAN HAVALİMANI",null,null,"X","X","X","X",null,null,null,null,null,"AİÇ.174","A Grubu","İç","Daimi"]
[151,"HAVAALANLARI YER HİZMETLERİ A.Ş.(HAVAŞ)","2008-09-11","2026-09-10","KAPADOKYA HAVALİMANI",null,null,"X","X","X","X",null,null,null,null,null,"ADIŞ.159","A Grubu","Dış","Daimi"]
[152,"ÇELEBİ HAVA SERVİSİ ANONİM ŞİRKETİ","2008-09-23","2026-09-22","ANTALYA HAVALİMANI",null,"X",null,null,null,null,null,null,null,null,null,"ADIŞ.062","A Grubu","Dış","Daimi"]
[153,"ÇELEBİ HAVA SERVİSİ ANONİM ŞİRKETİ","2008-09-23","2026-09-22","İSTANBUL HAVALİMANI",null,"X",null,null,null,null,null,null,null,null,null,"ADIŞ.218","A Grubu","Dış","Daimi"]
[154,"TÜRK HAVA YOLLARI ANONİM ORTAKLIĞI","2008-10-13","2026-10-12","KAYSERİ HAVALİMANI",null,null,null,"X",null,"X",null,null,null,"X",null,"BDIŞ.130","B Grubu","Dış","Daimi"]
[155,"TÜRK HAVA YOLLARI ANONİM ORTAKLIĞI","2008-10-13","2026-10-12","KONYA HAVALİMANI",null,null,"X","X","X","X",null,null,"X","X",null,"BİÇ.239","B Grubu","İç","Daimi"]
[156,"TÜRK HAVA YOLLARI ANONİM ORTAKLIĞI","2008-10-13","2026-10-12","KAHRAMANMARAŞ HAVALİMANI",null,null,"X","X","X","X",null,null,"X","X",null,"BİÇ.238","B Grubu","İç","Daimi"]
[157,"TÜRK HAVA YOLLARI ANONİM ORTAKLIĞI","2008-10-13","2026-10-12","HATAY HAVALİMANI",null,null,"X","X","X","X",null,null,"X","X",null,"BİÇ.237","B Grubu","İç","Daimi"]
[158,"TÜRK HAVA YOLLARI ANONİM ORTAKLIĞI","2008-10-13","2026-10-12","BURSA YENİŞEHİR HAVALİMANI",null,null,null,"X",null,"X",null,null,null,"X",null,"BDIŞ.129","B Grubu","Dış","Daimi"]
[159,"TÜRK HAVA YOLLARI ANONİM ORTAKLIĞI","2008-10-13","2026-10-12","AĞRI AHMED-İ HANİ  HAVALİMANI",null,null,"X","X","X","X",null,null,"X","X",null,"BİÇ.236","B Grubu","İç","Daimi"]
[160,"TÜRK HAVA YOLLARI ANONİM ORTAKLIĞI","2008-10-13","2026-10-12","ADIYAMAN  HAVALİMANI",null,null,"X","X","X","X",null,null,"X","X",null,"BİÇ.235","B Grubu","İç","Daimi"]
[161,"ÇELEBİ HAVA SERVİSİ ANONİM ŞİRKETİ","2008-12-19","2026-12-18","MUĞLA MİLAS-BODRUM HAVALİMANI",null,"X",null,null,null,null,null,null,null,null,null,"ADIŞ.066","A Grubu","Dış","Daimi"]
[162,"ÇELEBİ HAVA SERVİSİ ANONİM ŞİRKETİ","2008-12-19","2026-12-18","MUĞLA DALAMAN HAVALİMANI",null,"X",null,null,null,null,null,null,null,null,null,"ADIŞ.065","A Grubu","Dış","Daimi"]
[163,"ÇELEBİ HAVA SERVİSİ ANONİM ŞİRKETİ","2008-12-19","2026-12-18","ANKARA ESENBOĞA HAVALİMANI",null,"X",null,null,null,null,null,null,null,null,null,"ADIŞ.063","A Grubu","Dış","Daimi"]
[164,"ÇELEBİ HAVA SERVİSİ ANONİM ŞİRKETİ","2008-12-19","2026-12-18","TRABZON HAVALİMANI",null,"X",null,null,null,null,null,null,null,null,null,"ADIŞ.067","A Grubu","Dış","Daimi"]
[165,"HAVAALANLARI YER HİZMETLERİ A.Ş.(HAVAŞ)","2008-12-19","2026-12-18","GAZİANTEP HAVALİMANI",null,null,null,null,null,null,null,null,null,null,"X","ADIŞ.068","A Grubu","Dış","Daimi"]
[166,"HAVAALANLARI YER HİZMETLERİ A.Ş.(HAVAŞ)","2008-12-19","2026-12-18","TRABZON HAVALİMANI",null,null,null,null,null,null,null,null,null,null,"X","ADIŞ.069","A Grubu","Dış","Daimi"]
[167,"ÇELEBİ HAVA SERVİSİ ANONİM ŞİRKETİ","2008-12-19","2026-12-18","İZMİR ADNAN MENDERES HAVALİMANI",null,"X",null,null,null,null,null,null,null,null,null,"ADIŞ.064","A Grubu","Dış","Daimi"]
[168,"HAVAALANLARI YER HİZMETLERİ A.Ş.(HAVAŞ)","2009-02-04","2027-02-03","KONYA HAVALİMANI",null,null,null,null,null,null,null,null,null,null,"X","ADIŞ.075","A Grubu","Dış","Daimi"]
[169,"HAVAALANLARI YER HİZMETLERİ A.Ş.(HAVAŞ)","2009-02-04","2027-02-03","HATAY HAVALİMANI",null,null,null,null,null,null,null,null,null,null,"X","ADIŞ.074","A Grubu","Dış","Daimi"]
[170,"HAVAALANLARI YER HİZMETLERİ A.Ş.(HAVAŞ)","2009-02-16","2027-02-15","BATMAN HAVALİMANI",null,"X",null,null,null,null,null,null,null,null,null,"AİÇ.136","A Grubu","İç","Daimi"]
[171,"ÇELEBİ HAVA SERVİSİ ANONİM ŞİRKETİ","2009-03-02","2027-03-01","MALATYA HAVALİMANI",null,null,null,null,null,null,"X",null,null,null,null,"ADIŞ.196","A Grubu","Dış","Daimi"]
[172,"ÇELEBİ HAVA SERVİSİ ANONİM ŞİRKETİ","2009-03-02","2027-03-01","BURSA YENİŞEHİR HAVALİMANI",null,null,"X","X","X","X",null,null,null,null,null,"ADIŞ.195","A Grubu","Dış","Daimi"]
[173,"HAVAALANLARI YER HİZMETLERİ A.Ş.(HAVAŞ)","2009-03-31","2027-03-30","MUĞLA MİLAS-BODRUM HAVALİMANI",null,"X",null,null,null,null,null,null,null,null,null,"ADIŞ.084","A Grubu","Dış","Daimi"]
[174,"HAVAALANLARI YER HİZMETLERİ A.Ş.(HAVAŞ)","2009-03-31","2027-03-30","GAZİANTEP HAVALİMANI",null,"X",null,null,null,null,null,null,null,null,null,"ADIŞ.083","A Grubu","Dış","Daimi"]
[175,"HAVAALANLARI YER HİZMETLERİ A.Ş.(HAVAŞ)","2009-03-31","2027-03-30","TRABZON HAVALİMANI",null,"X",null,null,null,null,null,null,null,null,null,"ADIŞ.086","A Grubu","Dış","Daimi"]
[176,"HAVAALANLARI YER HİZMETLERİ A.Ş.(HAVAŞ)","2009-03-31","2027-03-30","KAYSERİ HAVALİMANI",null,"X",null,null,null,null,null,null,null,null,null,"ADIŞ.087","A Grubu","Dış","Daimi"]
[177,"HAVAALANLARI YER HİZMETLERİ A.Ş.(HAVAŞ)","2009-03-31","2027-03-30","KAPADOKYA HAVALİMANI",null,"X",null,null,null,null,null,null,null,null,null,"ADIŞ.085","A Grubu","Dış","Daimi"]
[178,"MERKÜR ULUSLARARASI TAŞIMACILIK TURİZM VE HAVACILIK ANONİM ŞİRKETİ","2009-04-03","2027-04-02","TÜM HAVALİMANLARI","X",null,null,null,null,null,null,null,null,null,null,"CDIŞ.203","C Grubu","Dış","Daimi"]
[179,"GÖZEN GÜVENLİK HİZMETLERİ VE TİCARET ANONİM ŞİRKETİ","2009-05-16","2025-05-15","İSTANBUL HAVALİMANI",null,null,null,null,null,null,null,"X",null,null,null,"CDIŞ.447","C Grubu","Dış","Daimi"]
[180,"BİLEN HAVACILIK LİMİTED ŞİRKETİ","2009-06-25","2025-06-24","BALIKESİR KOCA SEYİT HAVALİMANI",null,"X",null,null,null,null,null,null,null,null,null,"CDIŞ.208","C Grubu","Dış","Daimi"]
[181,"GÖZEN GÜVENLİK HİZMETLERİ VE TİCARET ANONİM ŞİRKETİ","2009-06-30","2025-06-29","ANKARA ESENBOĞA HAVALİMANI",null,null,null,null,null,null,null,"X",null,null,null,"CDIŞ.206","C Grubu","Dış","Daimi"]
[182,"GÖZEN GÜVENLİK HİZMETLERİ VE TİCARET ANONİM ŞİRKETİ","2009-06-30","2025-06-29","İZMİR ADNAN MENDERES HAVALİMANI",null,null,null,null,null,null,null,"X",null,null,null,"CDIŞ.207","C Grubu","Dış","Daimi"]
[183,"AKUA-TRANS TURİZM HAVACILIK LİMİTED ŞİRKETİ","2009-07-31","2025-07-30","ANTALYA HAVALİMANI",null,"X",null,null,null,null,null,null,null,null,null,"CDIŞ.214","C Grubu","Dış","Daimi"]
[184,"THY DO & CO İKRAM HİZMETLERİ ANONİM ŞİRKETİ","2009-11-03","2025-11-02","BURSA YENİŞEHİR HAVALİMANI",null,"X",null,null,null,null,null,null,null,null,null,"CDIŞ.223","C Grubu","Dış","Daimi"]
[185,"TGS YER HİZMETLERİ ANONİM ŞİRKETİ","2009-12-31","2025-06-30","ANKARA ESENBOĞA HAVALİMANI",null,"X","X","X","X","X",null,null,null,null,null,"ADIŞ.178","A Grubu","Dış","Daimi"]
[186,"TGS YER HİZMETLERİ ANONİM ŞİRKETİ","2009-12-31","2025-06-30","İZMİR ADNAN MENDERES HAVALİMANI",null,"X","X","X","X","X",null,null,null,null,null,"ADIŞ.177","A Grubu","Dış","Daimi"]
[187,"TGS YER HİZMETLERİ ANONİM ŞİRKETİ","2009-12-31","2025-06-30","ANTALYA HAVALİMANI",null,"X","X","X","X","X",null,null,null,null,null,"ADIŞ.176","A Grubu","Dış","Daimi"]
[188,"TGS YER HİZMETLERİ ANONİM ŞİRKETİ","2009-12-31","2025-06-30","İSTANBUL HAVALİMANI",null,"X","X","X","X","X",null,null,null,null,null,"ADIŞ.216","A Grubu","Dış","Daimi"]
[189,"TGS YER HİZMETLERİ ANONİM ŞİRKETİ","2009-12-31","2025-12-30","TÜM HAVALİMANLARI","X",null,null,null,null,null,null,null,null,null,null,"ADIŞ.100","A Grubu","Dış","Daimi"]
[190,"F.L.Y HAVA KARGO SERVİS HAVACILIK VE TURİZM HİZMETLERİ LİMİTED ŞİRKETİ","2010-01-06","2026-01-05","ISPARTA SÜLEYMAN DEMİREL HAVALİMANI",null,"X",null,null,null,null,null,null,null,null,null,"CDIŞ.230","C Grubu","Dış","Daimi"]
[191,"F.L.Y HAVA KARGO SERVİS HAVACILIK VE TURİZM HİZMETLERİ LİMİTED ŞİRKETİ","2010-01-06","2026-01-05","DİYARBAKIR HAVALİMANI",null,"X",null,null,null,null,null,null,null,null,null,"CDIŞ.231","C Grubu","Dış","Daimi"]
[192,"F.L.Y HAVA KARGO SERVİS HAVACILIK VE TURİZM HİZMETLERİ LİMİTED ŞİRKETİ","2010-01-06","2026-01-05","VAN FERİT MELEN HAVALİMANI",null,"X",null,null,null,null,null,null,null,null,null,"CDIŞ.236","C Grubu","Dış","Daimi"]
[193,"F.L.Y HAVA KARGO SERVİS HAVACILIK VE TURİZM HİZMETLERİ LİMİTED ŞİRKETİ","2010-01-06","2026-01-05","TRABZON HAVALİMANI",null,"X",null,null,null,null,null,null,null,null,null,"CDIŞ.227","C Grubu","Dış","Daimi"]
[194,"F.L.Y HAVA KARGO SERVİS HAVACILIK VE TURİZM HİZMETLERİ LİMİTED ŞİRKETİ","2010-01-06","2026-01-05","SAMSUN ÇARŞAMBA HAVALİMANI",null,"X",null,null,null,null,null,null,null,null,null,"CDIŞ.235","C Grubu","Dış","Daimi"]
[{"$f":"IF(ISTEXT(B197),A196+1,\"\")","v":195},"ADRİYATİK TAŞIMACILIK DIŞ TİCARET LİMİTED ŞİRKETİ","2010-01-06","2026-01-05","MUĞLA MİLAS-BODRUM HAVALİMANI",null,"X",null,null,null,null,null,null,null,null,null,"CDIŞ.225","C Grubu","Dış","Daimi"]
[196,"F.L.Y HAVA KARGO SERVİS HAVACILIK VE TURİZM HİZMETLERİ LİMİTED ŞİRKETİ","2010-01-06","2026-01-05","ERZİNCAN YILDIRIM AKBULUT HAVALİMANI",null,"X",null,null,null,null,null,null,null,null,null,"CDIŞ.232","C Grubu","Dış","Daimi"]
[197,"F.L.Y HAVA KARGO SERVİS HAVACILIK VE TURİZM HİZMETLERİ LİMİTED ŞİRKETİ","2010-01-06","2026-01-05","GAZİANTEP HAVALİMANI",null,"X",null,null,null,null,null,null,null,null,null,"CDIŞ.229","C Grubu","Dış","Daimi"]
[198,"F.L.Y HAVA KARGO SERVİS HAVACILIK VE TURİZM HİZMETLERİ LİMİTED ŞİRKETİ","2010-01-06","2026-01-05","ERZURUM HAVALİMANI",null,"X",null,null,null,null,null,null,null,null,null,"CDIŞ.228","C Grubu","Dış","Daimi"]
[199,"ADRİYATİK TAŞIMACILIK DIŞ TİCARET LİMİTED ŞİRKETİ","2010-01-06","2026-01-05","MUĞLA DALAMAN HAVALİMANI",null,"X",null,null,null,null,null,null,null,null,null,"CDIŞ.226","C Grubu","Dış","Daimi"]
[200,"F.L.Y HAVA KARGO SERVİS HAVACILIK VE TURİZM HİZMETLERİ LİMİTED ŞİRKETİ","2010-01-06","2026-01-05","MALATYA HAVALİMANI",null,"X",null,null,null,null,null,null,null,null,null,"CDIŞ.234","C Grubu","Dış","Daimi"]
[201,"F.L.Y HAVA KARGO SERVİS HAVACILIK VE TURİZM HİZMETLERİ LİMİTED ŞİRKETİ","2010-01-06","2026-01-05","KAYSERİ HAVALİMANI",null,"X",null,null,null,null,null,null,null,null,null,"CDIŞ.233","C Grubu","Dış","Daimi"]
[202,"ADRİYATİK TAŞIMACILIK DIŞ TİCARET LİMİTED ŞİRKETİ","2010-01-06","2026-01-05","İZMİR ADNAN MENDERES HAVALİMANI",null,"X",null,null,null,null,null,null,null,null,null,"CDIŞ.224","C Grubu","Dış","Daimi"]
[203,"TÜRK HAVA YOLLARI ANONİM ORTAKLIĞI","2010-01-11","2026-01-10","AMASYA MERZİFON HAVALİMANI",null,null,"X","X","X","X",null,null,null,"X",null,"BİÇ.240","B Grubu","İç","Daimi"]
[204,"TÜRK HAVA YOLLARI ANONİM ORTAKLIĞI","2010-01-11","2026-01-10","SİNOP HAVALİMANI",null,null,"X","X","X","X",null,null,null,null,null,"BİÇ.241","B Grubu","İç","Daimi"]
[205,"BİLEN HAVACILIK LİMİTED ŞİRKETİ","2010-01-12","2026-01-11","GAZİPAŞA ALANYA HAVALİMANI",null,"X",null,null,null,null,null,null,null,null,null,"CDIŞ.237","C Grubu","Dış","Daimi"]
[206,"GÖZEN HAVACILIK VE TİCARET ANONİM ŞİRKETİ","2010-01-13","2026-01-12","ISPARTA SÜLEYMAN DEMİREL HAVALİMANI",null,"X",null,null,null,null,null,null,null,null,null,"CDIŞ.239","C Grubu","Dış","Daimi"]
[207,"GÖZEN HAVACILIK VE TİCARET ANONİM ŞİRKETİ","2010-01-13","2026-01-12","TRABZON HAVALİMANI",null,"X",null,null,null,null,null,null,null,null,null,"CDIŞ.238","C Grubu","Dış","Daimi"]
[208,"HAVAALANLARI YER HİZMETLERİ A.Ş.(HAVAŞ)","2010-03-17","2026-03-16","GAZİPAŞA ALANYA HAVALİMANI",null,"X","X","X","X","X",null,null,null,null,null,"ADIŞ.160","A Grubu","Dış","Daimi"]
[209,"BİLEN HAVACILIK LİMİTED ŞİRKETİ","2010-03-29","2026-03-28","ANTALYA HAVALİMANI",null,"X",null,null,null,null,null,null,null,null,null,"CDIŞ.240","C Grubu","Dış","Daimi"]
[210,"F.L.Y HAVA KARGO SERVİS HAVACILIK VE TURİZM HİZMETLERİ LİMİTED ŞİRKETİ","2010-05-17","2026-05-16","GAZİPAŞA ALANYA HAVALİMANI",null,"X",null,null,null,null,null,null,null,null,null,"CDIŞ.242","C Grubu","Dış","Daimi"]
[211,"TURİSTİK HAVA TAŞIMACILIK A.Ş.(CORENDON)","2010-05-18","2026-05-17","ANTALYA HAVALİMANI",null,null,null,null,null,null,null,null,"X","X",null,"BDIŞ.159","B Grubu","Dış","Daimi"]
[212,"ACM-AIR CHARTER MARKET UÇAK SERVİSİ VE TURİZM HİZMETLERİ LİMİTED ŞİRKETİ","2010-06-07","2026-06-06","MUĞLA DALAMAN HAVALİMANI",null,"X",null,null,null,null,null,null,null,null,null,"CDIŞ.243","C Grubu","Dış","Daimi"]
[213,"ACM-AIR CHARTER MARKET UÇAK SERVİSİ VE TURİZM HİZMETLERİ LİMİTED ŞİRKETİ","2010-06-07","2026-06-06","MUĞLA MİLAS-BODRUM HAVALİMANI",null,"X",null,null,null,null,null,null,null,null,null,"CDIŞ.244","C Grubu","Dış","Daimi"]
[214,"ACM-AIR CHARTER MARKET UÇAK SERVİSİ VE TURİZM HİZMETLERİ LİMİTED ŞİRKETİ","2010-06-07","2026-06-06","ISPARTA SÜLEYMAN DEMİREL HAVALİMANI",null,"X",null,null,null,null,null,null,null,null,null,"CDIŞ.245","C Grubu","Dış","Daimi"]
[215,"GÖZEN HAVACILIK VE TİCARET ANONİM ŞİRKETİ","2010-06-08","2026-06-07","ISPARTA SÜLEYMAN DEMİREL HAVALİMANI",null,null,null,null,null,null,null,null,null,"X",null,"CDIŞ.254","C Grubu","Dış","Daimi"]
[216,"GÖZEN HAVACILIK VE TİCARET ANONİM ŞİRKETİ","2010-06-08","2026-06-07","ERZURUM HAVALİMANI",null,null,null,null,null,null,null,null,null,"X",null,"CDIŞ.255","C Grubu","Dış","Daimi"]
[217,"GÖZEN HAVACILIK VE TİCARET ANONİM ŞİRKETİ","2010-06-08","2026-06-07","MUĞLA DALAMAN HAVALİMANI",null,null,null,null,null,null,null,null,null,"X",null,"CDIŞ.251","C Grubu","Dış","Daimi"]
[218,"GÖZEN HAVACILIK VE TİCARET ANONİM ŞİRKETİ","2010-06-08","2026-06-07","KAYSERİ HAVALİMANI",null,null,null,null,null,null,null,null,null,"X",null,"CDIŞ.259","C Grubu","Dış","Daimi"]
[219,"GÖZEN HAVACILIK VE TİCARET ANONİM ŞİRKETİ","2010-06-08","2026-06-07","İZMİR ADNAN MENDERES HAVALİMANI",null,null,null,null,null,null,null,null,null,"X",null,"CDIŞ.249","C Grubu","Dış","Daimi"]
[220,"GÖZEN HAVACILIK VE TİCARET ANONİM ŞİRKETİ","2010-06-08","2026-06-07","İSTANBUL HAVALİMANI",null,null,null,null,null,null,null,null,null,"X",null,"CDIŞ.449","C Grubu","Dış","Daimi"]
[221,"GÖZEN HAVACILIK VE TİCARET ANONİM ŞİRKETİ","2010-06-08","2026-06-07","ANTALYA HAVALİMANI",null,null,null,null,null,null,null,null,null,"X",null,"CDIŞ.247","C Grubu","Dış","Daimi"]
[222,"GÖZEN HAVACILIK VE TİCARET ANONİM ŞİRKETİ","2010-06-08","2026-06-07","BURSA YENİŞEHİR HAVALİMANI",null,null,null,null,null,null,null,null,null,"X",null,"CDIŞ.257","C Grubu","Dış","Daimi"]
[223,"GÖZEN HAVACILIK VE TİCARET ANONİM ŞİRKETİ","2010-06-08","2026-06-07","ANKARA ESENBOĞA HAVALİMANI",null,null,null,null,null,null,null,null,null,"X",null,"CDIŞ.248","C Grubu","Dış","Daimi"]
[224,"GÖZEN HAVACILIK VE TİCARET ANONİM ŞİRKETİ","2010-06-08","2026-06-07","TRABZON HAVALİMANI",null,null,null,null,null,null,null,null,null,"X",null,"CDIŞ.253","C Grubu","Dış","Daimi"]
[225,"GÖZEN HAVACILIK VE TİCARET ANONİM ŞİRKETİ","2010-06-08","2026-06-07","MUĞLA MİLAS-BODRUM HAVALİMANI",null,null,null,null,null,null,null,null,null,"X",null,"CDIŞ.250","C Grubu","Dış","Daimi"]
[226,"GÖZEN HAVACILIK VE TİCARET ANONİM ŞİRKETİ","2010-06-08","2026-06-07","SAMSUN ÇARŞAMBA HAVALİMANI",null,null,null,null,null,null,null,null,null,"X",null,"CDIŞ.258","C Grubu","Dış","Daimi"]
[227,"GÖZEN HAVACILIK VE TİCARET ANONİM ŞİRKETİ","2010-06-08","2026-06-07","TEKİRDAĞ ÇORLU ATATÜRK HAVALİMANI",null,null,null,null,null,null,null,null,null,"X",null,"CDIŞ.256","C Grubu","Dış","Daimi"]
[228,"BİLEN HAVACILIK LİMİTED ŞİRKETİ","2010-06-25","2026-06-24","İZMİR ADNAN MENDERES HAVALİMANI",null,"X",null,null,null,null,null,null,null,null,null,"CDIŞ.260","C Grubu","Dış","Daimi"]
[229,"SANCAK UÇAK İÇİ SERVİSLERİ ANONİM ŞİRKETİ","2010-08-19","2026-08-18","İSTANBUL HAVALİMANI",null,null,null,null,null,null,"X",null,null,null,null,"CDIŞ.452","C Grubu","Dış","Daimi"]
[230,"SANCAK UÇAK İÇİ SERVİSLERİ ANONİM ŞİRKETİ","2010-08-19","2026-08-18","ANTALYA HAVALİMANI",null,null,null,null,null,null,"X",null,null,null,null,"CDIŞ.262","C Grubu","Dış","Daimi"]
[231,"HAVAALANLARI YER HİZMETLERİ A.Ş.(HAVAŞ)","2010-08-25","2026-08-24","KONYA HAVALİMANI",null,"X","X","X","X","X",null,null,null,null,null,"ADIŞ.163","A Grubu","Dış","Daimi"]
[232,"HAVAALANLARI YER HİZMETLERİ A.Ş.(HAVAŞ)","2010-08-25","2026-08-24","MUŞ SULTAN ALPARSLAN HAVALİMANI",null,"X","X","X","X","X",null,null,null,null,null,"ADIŞ.164","A Grubu","Dış","Daimi"]
[233,"HAVAALANLARI YER HİZMETLERİ A.Ş.(HAVAŞ)","2010-08-25","2026-08-24","SİVAS NURİ DEMİRAĞ HAVALİMANI",null,"X","X","X","X","X",null,null,null,null,null,"ADIŞ.165","A Grubu","Dış","Daimi"]
[234,"HAVAALANLARI YER HİZMETLERİ A.Ş.(HAVAŞ)","2010-08-25","2026-08-24","ELAZIĞ HAVALİMANI",null,"X","X","X","X","X",null,null,null,null,null,"ADIŞ.162","A Grubu","Dış","Daimi"]
[235,"HAVAALANLARI YER HİZMETLERİ A.Ş.(HAVAŞ)","2010-08-25","2026-08-24","ADIYAMAN  HAVALİMANI",null,"X","X","X","X","X",null,null,null,null,null,"ADIŞ.161","A Grubu","Dış","Daimi"]
[236,"HAVAALANLARI YER HİZMETLERİ A.Ş.(HAVAŞ)","2010-08-25","2026-08-24","ŞANLIURFA GAP HAVALİMANI",null,"X","X","X","X","X",null,null,null,null,null,"ADIŞ.166","A Grubu","Dış","Daimi"]
[237,"F.L.Y HAVA KARGO SERVİS HAVACILIK VE TURİZM HİZMETLERİ LİMİTED ŞİRKETİ","2010-09-17","2026-09-16","KAYSERİ HAVALİMANI",null,null,null,null,null,null,null,null,null,"X",null,"CDIŞ.266","C Grubu","Dış","Daimi"]
[238,"F.L.Y HAVA KARGO SERVİS HAVACILIK VE TURİZM HİZMETLERİ LİMİTED ŞİRKETİ","2010-09-17","2026-09-16","SAMSUN ÇARŞAMBA HAVALİMANI",null,null,null,null,null,null,null,null,null,"X",null,"CDIŞ.267","C Grubu","Dış","Daimi"]
[239,"F.L.Y HAVA KARGO SERVİS HAVACILIK VE TURİZM HİZMETLERİ LİMİTED ŞİRKETİ","2010-09-17","2026-09-16","İSTANBUL HAVALİMANI",null,null,null,null,null,null,null,null,null,"X",null,"CDIŞ.446","C Grubu","Dış","Daimi"]
[240,"F.L.Y HAVA KARGO SERVİS HAVACILIK VE TURİZM HİZMETLERİ LİMİTED ŞİRKETİ","2010-09-17","2026-09-16","GAZİANTEP HAVALİMANI",null,null,null,null,null,null,null,null,null,"X",null,"CDIŞ.265","C Grubu","Dış","Daimi"]
[241,"F.L.Y HAVA KARGO SERVİS HAVACILIK VE TURİZM HİZMETLERİ LİMİTED ŞİRKETİ","2010-09-17","2026-09-16","ANTALYA HAVALİMANI",null,null,null,null,null,null,null,null,null,"X",null,"CDIŞ.264","C Grubu","Dış","Daimi"]
[242,"BİLEN HAVACILIK LİMİTED ŞİRKETİ","2010-10-11","2026-10-10","ANTALYA HAVALİMANI",null,null,null,null,null,null,null,null,null,"X",null,"CDIŞ.270","C Grubu","Dış","Daimi"]
[243,"BİLEN HAVACILIK LİMİTED ŞİRKETİ","2010-10-11","2026-10-10","İSTANBUL HAVALİMANI",null,null,null,null,null,null,null,null,null,"X",null,"CDIŞ.460","C Grubu","Dış","Daimi"]
[244,"BİLEN HAVACILIK LİMİTED ŞİRKETİ","2010-10-11","2026-10-10","ANKARA ESENBOĞA HAVALİMANI",null,null,null,null,null,null,null,null,null,"X",null,"CDIŞ.269","C Grubu","Dış","Daimi"]
[245,"BİLEN HAVACILIK LİMİTED ŞİRKETİ","2010-10-11","2026-10-10","TEKİRDAĞ ÇORLU ATATÜRK HAVALİMANI",null,null,null,null,null,null,null,null,null,"X",null,"CDIŞ.272","C Grubu","Dış","Daimi"]
[246,"F.L.Y HAVA KARGO SERVİS HAVACILIK VE TURİZM HİZMETLERİ LİMİTED ŞİRKETİ","2010-10-14","2026-10-13","ELAZIĞ HAVALİMANI",null,"X",null,null,null,null,null,null,null,null,null,"CDIŞ.273","C Grubu","Dış","Daimi"]
[247,"F.L.Y HAVA KARGO SERVİS HAVACILIK VE TURİZM HİZMETLERİ LİMİTED ŞİRKETİ","2010-10-14","2026-10-13","HATAY HAVALİMANI",null,"X",null,null,null,null,null,null,null,null,null,"CDIŞ.274","C Grubu","Dış","Daimi"]
[248,"F.L.Y HAVA KARGO SERVİS HAVACILIK VE TURİZM HİZMETLERİ LİMİTED ŞİRKETİ","2010-10-14","2026-10-13","KARS HARAKANİ HAVALİMANI",null,"X",null,null,null,null,null,null,null,null,null,"CDIŞ.275","C Grubu","Dış","Daimi"]
[249,"F.L.Y HAVA KARGO SERVİS HAVACILIK VE TURİZM HİZMETLERİ LİMİTED ŞİRKETİ","2010-10-14","2026-10-13","KONYA HAVALİMANI",null,"X",null,null,null,null,null,null,null,null,null,"CDIŞ.276","C Grubu","Dış","Daimi"]
[250,"F.L.Y HAVA KARGO SERVİS HAVACILIK VE TURİZM HİZMETLERİ LİMİTED ŞİRKETİ","2010-10-14","2026-10-13","ZONGULDAK ÇAYCUMA HAVALİMANI",null,"X",null,null,null,null,null,null,null,null,null,"CDIŞ.277","C Grubu","Dış","Daimi"]
[251,"HAVAALANLARI YER HİZMETLERİ A.Ş.(HAVAŞ)","2010-12-15","2026-12-14","GAZİPAŞA ALANYA HAVALİMANI",null,null,null,null,null,null,null,null,null,null,"X","ADIŞ.109","A Grubu","Dış","Daimi"]
[252,"HAVAALANLARI YER HİZMETLERİ A.Ş.(HAVAŞ)","2011-01-04","2027-01-03","SİNOP HAVALİMANI",null,"X",null,null,null,null,null,null,null,null,null,"ADIŞ.113","A Grubu","Dış","Daimi"]
[253,"HAVAALANLARI YER HİZMETLERİ A.Ş.(HAVAŞ)","2011-01-04","2027-01-03","AMASYA MERZİFON HAVALİMANI",null,"X",null,null,null,null,null,null,null,null,null,"ADIŞ.111","A Grubu","Dış","Daimi"]
[254,"HAVAALANLARI YER HİZMETLERİ A.Ş.(HAVAŞ)","2011-01-04","2027-01-03","AMASYA MERZİFON HAVALİMANI",null,null,"X","X","X","X",null,null,null,null,null,"AİÇ.172","A Grubu","İç","Daimi"]
[255,"HAVAALANLARI YER HİZMETLERİ A.Ş.(HAVAŞ)","2011-01-04","2027-01-03","SİNOP HAVALİMANI",null,null,"X","X","X","X",null,null,null,null,null,"AİÇ.173","A Grubu","İç","Daimi"]
[256,"ÇELEBİ HAVA SERVİSİ ANONİM ŞİRKETİ","2011-03-07","2027-03-06","HATAY HAVALİMANI",null,null,"X","X","X","X",null,null,null,null,null,"ADIŞ.197","A Grubu","Dış","Daimi"]
[257,"ÇELEBİ HAVA SERVİSİ ANONİM ŞİRKETİ","2011-03-07","2027-03-06","VAN FERİT MELEN HAVALİMANI",null,null,"X","X","X","X",null,null,null,null,null,"ADIŞ.198","A Grubu","Dış","Daimi"]
[258,"TAV ÖZEL GÜVENLİK HİZMETLERİ ANONİM ŞİRKETİ","2011-04-14","2027-04-13","İSTANBUL HAVALİMANI",null,null,null,null,null,null,null,"X",null,null,null,"CDIŞ.455","C Grubu","Dış","Daimi"]
[{"$f":"IF(ISTEXT(B261),A260+1,\"\")","v":259},"ADRİYATİK TAŞIMACILIK DIŞ TİCARET LİMİTED ŞİRKETİ","2011-06-17","2025-06-16","GAZİPAŞA ALANYA HAVALİMANI",null,"X",null,null,null,null,null,null,null,null,null,"CDIŞ.290","C Grubu","Dış","Daimi"]
[260,"ADRİYATİK TAŞIMACILIK DIŞ TİCARET LİMİTED ŞİRKETİ","2011-06-17","2025-06-16","HATAY HAVALİMANI",null,"X",null,null,null,null,null,null,null,null,null,"CDIŞ.289","C Grubu","Dış","Daimi"]
[261,"ADRİYATİK TAŞIMACILIK DIŞ TİCARET LİMİTED ŞİRKETİ","2011-06-17","2025-06-16","TRABZON HAVALİMANI",null,"X",null,null,null,null,null,null,null,null,null,"CDIŞ.288","C Grubu","Dış","Daimi"]
[262,"ADRİYATİK TAŞIMACILIK DIŞ TİCARET LİMİTED ŞİRKETİ","2011-06-17","2025-06-16","ANKARA ESENBOĞA HAVALİMANI",null,"X",null,null,null,null,null,null,null,null,null,"CDIŞ.287","C Grubu","Dış","Daimi"]
[263,"MAPLE GROUP HAVACILIK TURİZM DIŞ TİCARET ANONİM ŞİRKETİ","2011-08-17","2025-08-16","MUĞLA DALAMAN HAVALİMANI",null,"X",null,null,null,null,null,null,null,null,null,"CDIŞ.423","C Grubu","Dış","Daimi"]
[264,"MAPLE GROUP HAVACILIK TURİZM DIŞ TİCARET ANONİM ŞİRKETİ","2011-08-17","2025-08-16","MUĞLA MİLAS-BODRUM HAVALİMANI",null,"X",null,null,null,null,null,null,null,null,null,"CDIŞ.424","C Grubu","Dış","Daimi"]
[265,"SANCAK UÇAK İÇİ SERVİSLERİ ANONİM ŞİRKETİ","2011-08-19","2025-08-18","İZMİR ADNAN MENDERES HAVALİMANI",null,null,null,null,null,null,"X",null,null,null,null,"CDIŞ.293","C Grubu","Dış","Daimi"]
[266,"BİLEN HAVACILIK LİMİTED ŞİRKETİ","2011-09-12","2025-09-11","GAZİANTEP HAVALİMANI",null,"X",null,null,null,null,null,null,null,"X",null,"CDIŞ.295","C Grubu","Dış","Daimi"]
[267,"BİLEN HAVACILIK LİMİTED ŞİRKETİ","2011-09-12","2025-09-11","ISPARTA SÜLEYMAN DEMİREL HAVALİMANI",null,"X",null,null,null,null,null,null,null,"X",null,"CDIŞ.297","C Grubu","Dış","Daimi"]
[268,"BİLEN HAVACILIK LİMİTED ŞİRKETİ","2011-09-12","2025-09-11","KAPADOKYA HAVALİMANI",null,"X",null,null,null,null,null,null,null,"X",null,"CDIŞ.296","C Grubu","Dış","Daimi"]
[269,"BİLEN HAVACILIK LİMİTED ŞİRKETİ","2011-09-12","2025-09-11","SAMSUN ÇARŞAMBA HAVALİMANI",null,"X",null,null,null,null,null,null,null,"X",null,"CDIŞ.299","C Grubu","Dış","Daimi"]
[270,"BİLEN HAVACILIK LİMİTED ŞİRKETİ","2011-09-12","2025-09-11","TRABZON HAVALİMANI",null,"X",null,null,null,null,null,null,null,"X",null,"CDIŞ.294","C Grubu","Dış","Daimi"]
[271,"BİLEN HAVACILIK LİMİTED ŞİRKETİ","2011-09-12","2025-09-11","BURSA YENİŞEHİR HAVALİMANI",null,"X",null,null,null,null,null,null,null,"X",null,"CDIŞ.301","C Grubu","Dış","Daimi"]
[272,"BİLEN HAVACILIK LİMİTED ŞİRKETİ","2011-09-12","2025-09-11","KONYA HAVALİMANI",null,"X",null,null,null,null,null,null,null,"X",null,"CDIŞ.302","C Grubu","Dış","Daimi"]
[273,"BİLEN HAVACILIK LİMİTED ŞİRKETİ","2011-09-12","2025-09-11","KAYSERİ HAVALİMANI",null,"X",null,null,null,null,null,null,null,"X",null,"CDIŞ.300","C Grubu","Dış","Daimi"]
[274,"BİLEN HAVACILIK LİMİTED ŞİRKETİ","2011-09-12","2025-09-11","ERZURUM HAVALİMANI",null,"X",null,null,null,null,null,null,null,"X",null,"CDIŞ.298","C Grubu","Dış","Daimi"]
[275,"DEUTSCHE LUFTHANSA AKTIENGESELLSCHHEFT TÜRKİYE ŞUBESİ","2011-10-01","2025-09-30","İSTANBUL HAVALİMANI",null,null,null,null,null,"X",null,null,"X",null,null,"BDIŞ.251","B Grubu","Dış","Daimi"]
[276,"SANCAK UÇAK İÇİ SERVİSLERİ ANONİM ŞİRKETİ","2011-11-18","2025-11-17","MUĞLA MİLAS-BODRUM HAVALİMANI",null,null,null,null,null,null,"X",null,null,null,null,"CDIŞ.303","C Grubu","Dış","Daimi"]
[277,"SANCAK UÇAK İÇİ SERVİSLERİ ANONİM ŞİRKETİ","2011-11-18","2025-11-17","MUĞLA DALAMAN HAVALİMANI",null,null,null,null,null,null,"X",null,null,null,null,"CDIŞ.304","C Grubu","Dış","Daimi"]
[278,"THY DO & CO İKRAM HİZMETLERİ ANONİM ŞİRKETİ","2011-11-21","2025-11-20","ISPARTA SÜLEYMAN DEMİREL HAVALİMANI",null,null,null,null,null,null,"X",null,null,null,null,"CDIŞ.306","C Grubu","Dış","Daimi"]
[279,"THY DO & CO İKRAM HİZMETLERİ ANONİM ŞİRKETİ","2011-11-21","2025-11-20","DENİZLİ ÇARDAK HAVALİMANI",null,null,null,null,null,null,"X",null,null,null,null,"CDIŞ.307","C Grubu","Dış","Daimi"]
[280,"THY DO & CO İKRAM HİZMETLERİ ANONİM ŞİRKETİ","2011-11-21","2025-11-20","GAZİANTEP HAVALİMANI",null,null,null,null,null,null,"X",null,null,null,null,"CDIŞ.305","C Grubu","Dış","Daimi"]
[281,"MERKÜR ULUSLARARASI TAŞIMACILIK TURİZM VE HAVACILIK ANONİM ŞİRKETİ","2011-12-08","2025-12-07","ANTALYA HAVALİMANI",null,"X",null,null,null,null,null,null,null,null,null,"CDIŞ.308","C Grubu","Dış","Daimi"]
[282,"ÇELEBİ HAVA SERVİSİ ANONİM ŞİRKETİ","2012-01-24","2026-01-23","BALIKESİR KOCA SEYİT HAVALİMANI",null,"X",null,null,null,null,null,null,null,null,null,"ADIŞ.205","A Grubu","Dış","Daimi"]
[283,"ÇELEBİ HAVA SERVİSİ ANONİM ŞİRKETİ","2012-01-24","2026-01-23","MARDİN PROF. DR. AZİZ SANCAR HAVALİMANI",null,null,"X","X","X","X",null,null,null,null,null,"ADIŞ.204","A Grubu","Dış","Daimi"]
[284,"ÇELEBİ HAVA SERVİSİ ANONİM ŞİRKETİ","2012-01-24","2026-01-23","KARS HARAKANİ HAVALİMANI",null,null,"X","X","X","X",null,null,null,null,null,"ADIŞ.203","A Grubu","Dış","Daimi"]
[285,"ÇELEBİ HAVA SERVİSİ ANONİM ŞİRKETİ","2012-01-24","2026-01-23","KAHRAMANMARAŞ HAVALİMANI",null,null,"X","X","X","X",null,null,null,null,null,"ADIŞ.202","A Grubu","Dış","Daimi"]
[286,"ÇELEBİ HAVA SERVİSİ ANONİM ŞİRKETİ","2012-01-24","2026-01-23","DENİZLİ ÇARDAK HAVALİMANI",null,null,"X","X","X","X",null,null,null,null,null,"ADIŞ.200","A Grubu","Dış","Daimi"]
[287,"ÇELEBİ HAVA SERVİSİ ANONİM ŞİRKETİ","2012-01-24","2026-01-23","ISPARTA SÜLEYMAN DEMİREL HAVALİMANI",null,null,"X","X","X","X",null,null,null,null,null,"ADIŞ.199","A Grubu","Dış","Daimi"]
[288,"ÇELEBİ HAVA SERVİSİ ANONİM ŞİRKETİ","2012-01-24","2026-01-23","ERZİNCAN YILDIRIM AKBULUT HAVALİMANI",null,null,"X","X","X","X",null,null,null,null,null,"ADIŞ.201","A Grubu","Dış","Daimi"]
[289,"ÇELEBİ HAVA SERVİSİ ANONİM ŞİRKETİ","2012-06-25","2025-06-24","KOCAELİ CENGİZ TOPEL HAVALİMANI",null,null,"X","X",null,"X",null,null,null,null,null,"GA.001","A Grubu","Dış","Geçici"]
[290,"GÖZEN HAVACILIK VE TİCARET ANONİM ŞİRKETİ","2012-07-26","2026-07-25","DİYARBAKIR HAVALİMANI",null,"X",null,null,null,null,null,null,null,null,null,"CDIŞ.311","C Grubu","Dış","Daimi"]
[291,"GÖZEN HAVACILIK VE TİCARET ANONİM ŞİRKETİ","2012-07-26","2026-07-25","GAZİPAŞA ALANYA HAVALİMANI",null,"X",null,null,null,null,null,null,null,null,null,"CDIŞ.312","C Grubu","Dış","Daimi"]
[292,"GÖZEN HAVACILIK VE TİCARET ANONİM ŞİRKETİ","2012-07-26","2026-07-25","GAZİANTEP HAVALİMANI",null,"X",null,null,null,null,null,null,null,null,null,"CDIŞ.309","C Grubu","Dış","Daimi"]
[293,"GÖZEN HAVACILIK VE TİCARET ANONİM ŞİRKETİ","2012-07-26","2026-07-25","KAPADOKYA HAVALİMANI",null,"X",null,null,null,null,null,null,null,null,null,"CDIŞ.310","C Grubu","Dış","Daimi"]
[294,"SANCAK UÇAK İÇİ SERVİSLERİ ANONİM ŞİRKETİ","2012-08-07","2026-08-06","GAZİPAŞA ALANYA HAVALİMANI",null,null,null,null,null,null,"X",null,null,null,null,"CDIŞ.314","C Grubu","Dış","Daimi"]
[295,"SANCAK UÇAK İÇİ SERVİSLERİ ANONİM ŞİRKETİ","2012-08-07","2026-08-06","ANKARA ESENBOĞA HAVALİMANI",null,null,null,null,null,null,"X",null,null,null,null,"CDIŞ.313","C Grubu","Dış","Daimi"]
[296,"HAVAALANLARI YER HİZMETLERİ A.Ş.(HAVAŞ)","2012-08-10","2026-08-09","AĞRI AHMED-İ HANİ  HAVALİMANI",null,"X","X","X","X","X",null,null,null,null,null,"ADIŞ.167","A Grubu","Dış","Daimi"]
[297,"HAVAALANLARI YER HİZMETLERİ A.Ş.(HAVAŞ)","2012-11-28","2026-11-27","ZAFER HAVALİMANI",null,null,null,null,null,null,"X",null,null,null,null,"ADIŞ.168","A Grubu","Dış","Daimi"]
[298,"ACM-AIR CHARTER MARKET UÇAK SERVİSİ VE TURİZM HİZMETLERİ LİMİTED ŞİRKETİ","2012-12-24","2026-12-23","ANKARA ESENBOĞA HAVALİMANI",null,null,null,null,null,null,null,null,null,"X",null,"CDIŞ.319","C Grubu","Dış","Daimi"]
[299,"ACM-AIR CHARTER MARKET UÇAK SERVİSİ VE TURİZM HİZMETLERİ LİMİTED ŞİRKETİ","2012-12-24","2026-12-23","MUĞLA MİLAS-BODRUM HAVALİMANI",null,null,null,null,null,null,null,null,null,"X",null,"CDIŞ.321","C Grubu","Dış","Daimi"]
[300,"ACM-AIR CHARTER MARKET UÇAK SERVİSİ VE TURİZM HİZMETLERİ LİMİTED ŞİRKETİ","2012-12-24","2026-12-23","İSTANBUL HAVALİMANI",null,null,null,null,null,null,null,null,null,"X",null,"CDIŞ.438","C Grubu","Dış","Daimi"]
[301,"ÇELEBİ HAVA SERVİSİ ANONİM ŞİRKETİ","2012-12-24","2026-12-23","ÇANAKKALE HAVALİMANI",null,null,"X","X","X","X",null,null,null,null,null,"ADIŞ.206","A Grubu","Dış","Daimi"]
[302,"ACM-AIR CHARTER MARKET UÇAK SERVİSİ VE TURİZM HİZMETLERİ LİMİTED ŞİRKETİ","2012-12-24","2026-12-23","ANTALYA HAVALİMANI",null,null,null,null,null,null,null,null,null,"X",null,"CDIŞ.320","C Grubu","Dış","Daimi"]
[303,"AEROFLOT RUSSIAN AIRLINES","2013-01-21","2027-01-20","TÜM HAVALİMANLARI","X",null,null,null,null,null,null,null,null,null,null,"BDIŞ.185","B Grubu","Dış","Daimi"]
[304,"AEROFLOT RUSSIAN AIRLINES","2013-01-21","2027-01-20","ANTALYA HAVALİMANI",null,"X",null,null,null,null,null,null,null,null,null,"BDIŞ.187","B Grubu","Dış","Daimi"]
[305,"AEROFLOT RUSSIAN AIRLINES","2013-01-21","2027-01-20","İSTANBUL HAVALİMANI",null,"X",null,null,null,null,null,null,null,null,null,"BDIŞ.248","B Grubu","Dış","Daimi"]
[306,"TGS YER HİZMETLERİ ANONİM ŞİRKETİ","2013-05-13","2025-05-12","MUĞLA MİLAS-BODRUM HAVALİMANI",null,null,"X","X","X","X",null,null,null,null,null,"ADIŞ.180","A Grubu","Dış","Daimi"]
[307,"TGS YER HİZMETLERİ ANONİM ŞİRKETİ","2013-05-13","2025-05-12","MUĞLA DALAMAN HAVALİMANI",null,null,"X","X","X","X",null,null,null,null,null,"ADIŞ.181","A Grubu","Dış","Daimi"]
[308,"GÜNEŞ EKSPRES  HAVACILIK A.Ş. (SUNEXPRESS)","2013-08-15","2025-08-14","ANKARA ESENBOĞA HAVALİMANI",null,null,null,null,null,null,null,null,"X",null,null,"BDIŞ.196","B Grubu","Dış","Daimi"]
[309,"TGS YER HİZMETLERİ ANONİM ŞİRKETİ","2013-08-28","2025-08-27","MUĞLA DALAMAN HAVALİMANI",null,"X",null,null,null,null,null,null,null,null,null,"ADIŞ.130","A Grubu","Dış","Daimi"]
[310,"HAVAALANLARI YER HİZMETLERİ A.Ş.(HAVAŞ)","2013-08-28","2025-08-27","ELAZIĞ HAVALİMANI",null,null,null,null,null,null,null,null,null,null,"X","ADIŞ.134","A Grubu","Dış","Daimi"]
[311,"HAVAALANLARI YER HİZMETLERİ A.Ş.(HAVAŞ)","2013-08-28","2025-08-27","SİVAS NURİ DEMİRAĞ HAVALİMANI",null,null,null,null,null,null,null,null,null,null,"X","ADIŞ.133","A Grubu","Dış","Daimi"]
[312,"TGS YER HİZMETLERİ ANONİM ŞİRKETİ","2013-08-28","2025-08-27","MUĞLA MİLAS-BODRUM HAVALİMANI",null,"X",null,null,null,null,null,null,null,null,null,"ADIŞ.131","A Grubu","Dış","Daimi"]
[313,"THY DO & CO İKRAM HİZMETLERİ ANONİM ŞİRKETİ","2013-09-04","2025-09-03","GAZİPAŞA ALANYA HAVALİMANI",null,null,null,null,null,null,"X",null,null,null,null,"CDIŞ.330","C Grubu","Dış","Daimi"]
[314,"ÇELEBİ HAVA SERVİSİ ANONİM ŞİRKETİ","2014-02-17","2026-02-16","IĞDIR ŞEHİT BÜLENT AYDIN HAVALİMANI",null,null,"X","X","X","X",null,null,null,null,null,"ADIŞ.207","A Grubu","Dış","Daimi"]
[315,"ÇELEBİ HAVA SERVİSİ ANONİM ŞİRKETİ","2014-03-14","2026-03-13","TEKİRDAĞ ÇORLU ATATÜRK HAVALİMANI",null,"X",null,null,null,null,null,null,null,null,null,"ADIŞ.138","A Grubu","Dış","Daimi"]
[316,"TÜRK HAVA YOLLARI ANONİM ORTAKLIĞI","2014-03-14","2026-03-13","İSTANBUL HAVALİMANI",null,null,null,null,null,null,null,"X",null,null,null,"BDIŞ.253","B Grubu","Dış","Daimi"]
[317,"ÇELEBİ HAVA SERVİSİ ANONİM ŞİRKETİ","2014-05-21","2026-05-20","BİNGÖL HAVALİMANI",null,null,"X","X","X","X",null,null,null,null,null,"ADIŞ.208","A Grubu","Dış","Daimi"]
[318,"HAVAALANLARI YER HİZMETLERİ A.Ş.(HAVAŞ)","2014-07-17","2026-07-16","ŞIRNAK ŞERAFETTİN ELÇİ HAVALİMANI",null,"X","X","X","X","X",null,null,null,null,null,"ADIŞ.170","A Grubu","Dış","Daimi"]
[319,"HAVAALANLARI YER HİZMETLERİ A.Ş.(HAVAŞ)","2014-07-17","2026-07-16","KASTAMONU HAVALİMANI",null,"X","X","X","X","X",null,null,null,null,null,"ADIŞ.169","A Grubu","Dış","Daimi"]
[320,"MERKÜR ULUSLARARASI TAŞIMACILIK TURİZM VE HAVACILIK ANONİM ŞİRKETİ","2014-08-04","2026-08-03","VAN FERİT MELEN HAVALİMANI",null,"X",null,null,null,null,null,null,null,null,null,"CDIŞ.335","C Grubu","Dış","Daimi"]
[321,"ACM-AIR CHARTER MARKET UÇAK SERVİSİ VE TURİZM HİZMETLERİ LİMİTED ŞİRKETİ","2014-08-18","2026-08-17","DENİZLİ ÇARDAK HAVALİMANI",null,"X",null,null,null,null,null,null,null,null,null,"CDIŞ.347","C Grubu","Dış","Daimi"]
[322,"BİLEN HAVACILIK LİMİTED ŞİRKETİ","2014-08-18","2026-08-17","HATAY HAVALİMANI",null,"X",null,null,null,null,null,null,null,"X",null,"CDIŞ.336","C Grubu","Dış","Daimi"]
[{"$f":"IF(ISTEXT(B325),A324+1,\"\")","v":323},"GÖZEN HAVACILIK VE TİCARET ANONİM ŞİRKETİ","2014-10-01","2026-09-30","BALIKESİR KOCA SEYİT HAVALİMANI",null,"X",null,null,null,null,null,null,null,null,null,"CDIŞ.359","C Grubu","Dış","Daimi"]
[324,"GÖZEN HAVACILIK VE TİCARET ANONİM ŞİRKETİ","2014-10-01","2026-09-30","VAN FERİT MELEN HAVALİMANI",null,"X",null,null,null,null,null,null,null,null,null,"CDIŞ.360","C Grubu","Dış","Daimi"]
[325,"GÖZEN HAVACILIK VE TİCARET ANONİM ŞİRKETİ","2014-10-01","2026-09-30","ZAFER HAVALİMANI",null,"X",null,null,null,null,null,null,null,null,null,"CDIŞ.361","C Grubu","Dış","Daimi"]
[326,"GÖZEN HAVACILIK VE TİCARET ANONİM ŞİRKETİ","2014-10-01","2026-09-30","HATAY HAVALİMANI",null,"X",null,null,null,null,null,null,null,null,null,"CDIŞ.355","C Grubu","Dış","Daimi"]
[327,"GÖZEN HAVACILIK VE TİCARET ANONİM ŞİRKETİ","2014-10-01","2026-09-30","KONYA HAVALİMANI",null,"X",null,null,null,null,null,null,null,null,null,"CDIŞ.356","C Grubu","Dış","Daimi"]
[328,"GÖZEN HAVACILIK VE TİCARET ANONİM ŞİRKETİ","2014-10-01","2026-09-30","MALATYA HAVALİMANI",null,"X",null,null,null,null,null,null,null,null,null,"CDIŞ.354","C Grubu","Dış","Daimi"]
[329,"GÖZEN HAVACILIK VE TİCARET ANONİM ŞİRKETİ","2014-10-01","2026-09-30","DENİZLİ ÇARDAK HAVALİMANI",null,"X",null,null,null,null,null,null,null,null,null,"CDIŞ.358","C Grubu","Dış","Daimi"]
[330,"GÖZEN HAVACILIK VE TİCARET ANONİM ŞİRKETİ","2014-10-01","2026-09-30","ŞANLIURFA GAP HAVALİMANI",null,"X",null,null,null,null,null,null,null,null,null,"CDIŞ.357","C Grubu","Dış","Daimi"]
[331,"GÖZEN HAVACILIK VE TİCARET ANONİM ŞİRKETİ","2014-10-01","2026-09-30","ELAZIĞ HAVALİMANI",null,"X",null,null,null,null,null,null,null,null,null,"CDIŞ.353","C Grubu","Dış","Daimi"]
[332,"MAPLE GROUP HAVACILIK TURİZM DIŞ TİCARET ANONİM ŞİRKETİ","2014-10-08","2026-10-07","GAZİPAŞA ALANYA HAVALİMANI",null,"X",null,null,null,null,null,null,null,null,null,"CDIŞ.430","C Grubu","Dış","Daimi"]
[333,"MAPLE GROUP HAVACILIK TURİZM DIŞ TİCARET ANONİM ŞİRKETİ","2014-10-08","2026-10-07","ERZURUM HAVALİMANI",null,"X",null,null,null,null,null,null,null,null,null,"CDIŞ.429","C Grubu","Dış","Daimi"]
[334,"MERKÜR ULUSLARARASI TAŞIMACILIK TURİZM VE HAVACILIK ANONİM ŞİRKETİ","2014-10-23","2026-10-22","HATAY HAVALİMANI",null,"X",null,null,null,null,null,null,null,null,null,"CDIŞ.366","C Grubu","Dış","Daimi"]
[335,"MERKÜR ULUSLARARASI TAŞIMACILIK TURİZM VE HAVACILIK ANONİM ŞİRKETİ","2014-10-23","2026-10-22","ANKARA ESENBOĞA HAVALİMANI",null,"X",null,null,null,null,null,null,null,null,null,"CDIŞ.365","C Grubu","Dış","Daimi"]
[336,"GÖZEN HAVACILIK VE TİCARET ANONİM ŞİRKETİ","2015-04-30","2027-04-29","ZONGULDAK ÇAYCUMA HAVALİMANI",null,"X",null,null,null,null,null,null,null,null,null,"CDIŞ.378","C Grubu","Dış","Daimi"]
[337,"HAVAALANLARI YER HİZMETLERİ A.Ş.(HAVAŞ)","2015-07-08","2025-07-07","ORDU-GİRESUN HAVALİMANI",null,null,null,null,null,null,null,null,null,null,"X","ADIŞ.145","A Grubu","Dış","Daimi"]
[338,"MERKÜR ULUSLARARASI TAŞIMACILIK TURİZM VE HAVACILIK ANONİM ŞİRKETİ","2015-08-14","2025-08-13","TRABZON HAVALİMANI",null,"X",null,null,null,null,null,null,null,null,null,"CDIŞ.382","C Grubu","Dış","Daimi"]
[339,"HAVAALANLARI YER HİZMETLERİ A.Ş.(HAVAŞ)","2015-08-14","2025-08-13","ORDU-GİRESUN HAVALİMANI",null,"X","X","X","X","X",null,null,null,null,null,"ADIŞ.171","A Grubu","Dış","Daimi"]
[340,"SİSTEM GÜVENLİK HİZMETLERİ LİMİTED ŞİRKETİ","2015-10-26","2025-10-25","İSTANBUL HAVALİMANI",null,null,null,null,null,null,null,"X",null,null,null,"CDIŞ.453","C Grubu","Dış","Daimi"]
[341,"ÇELEBİ HAVA SERVİSİ ANONİM ŞİRKETİ","2015-11-17","2025-11-16","HAKKARİ YÜKSEKOVA SELAHADDİN EYYUBİ HAVALİMANI",null,null,"X","X","X","X",null,null,null,null,null,"ADIŞ.209","A Grubu","Dış","Daimi"]
[342,"AİRPAK TEMİZLİK HİZ.SAN.VE TİC.A.Ş.","2015-12-21","2025-12-20","İSTANBUL HAVALİMANI",null,"X",null,null,null,null,null,null,null,null,null,"CDIŞ.441","C Grubu","Dış","Daimi"]
[343,"GÖZEN GÜVENLİK HİZMETLERİ VE TİCARET ANONİM ŞİRKETİ","2016-03-23","2026-03-22","MUĞLA MİLAS-BODRUM HAVALİMANI",null,null,null,null,null,null,null,"X",null,null,null,"CDIŞ.394","C Grubu","Dış","Daimi"]
[344,"GÖZEN GÜVENLİK HİZMETLERİ VE TİCARET ANONİM ŞİRKETİ","2016-03-23","2026-03-22","MUĞLA DALAMAN HAVALİMANI",null,null,null,null,null,null,null,"X",null,null,null,"CDIŞ.393","C Grubu","Dış","Daimi"]
[345,"5M YER HİZMETLERİ ANONİM ŞİRKETİ","2016-07-18","2026-07-17","İSTANBUL HAVALİMANI",null,"X",null,null,null,null,null,null,null,null,null,"CDIŞ.436","C Grubu","Dış","Daimi"]
[346,"SİSTEM GÜVENLİK HİZMETLERİ LİMİTED ŞİRKETİ","2016-08-18","2026-08-17","ANTALYA HAVALİMANI",null,null,null,null,null,null,null,"X",null,null,null,"CDIŞ.396","C Grubu","Dış","Daimi"]
[347,"SİSTEM GÜVENLİK HİZMETLERİ LİMİTED ŞİRKETİ","2016-09-09","2026-09-08","İZMİR ADNAN MENDERES HAVALİMANI",null,null,null,null,null,null,null,"X",null,null,null,"CDIŞ.397","C Grubu","Dış","Daimi"]
[348,"THY DO & CO İKRAM HİZMETLERİ ANONİM ŞİRKETİ","2016-12-19","2026-12-18","ORDU-GİRESUN HAVALİMANI",null,null,null,null,null,null,"X",null,null,null,null,"CDIŞ.399","C Grubu","Dış","Daimi"]
[349,"THY DO & CO İKRAM HİZMETLERİ ANONİM ŞİRKETİ","2016-12-19","2026-12-18","ZAFER HAVALİMANI",null,null,null,null,null,null,"X",null,null,null,null,"CDIŞ.398","C Grubu","Dış","Daimi"]
[350,"HAVAALANLARI YER HİZMETLERİ A.Ş.(HAVAŞ)","2017-01-12","2027-01-11","MARDİN PROF. DR. AZİZ SANCAR HAVALİMANI",null,null,null,null,null,null,null,null,null,null,"X","ADIŞ.148","A Grubu","Dış","Daimi"]
[351,"TAV ÖZEL GÜVENLİK HİZMETLERİ ANONİM ŞİRKETİ","2017-01-19","2027-01-18","ANKARA ESENBOĞA HAVALİMANI",null,null,null,null,null,null,null,"X",null,null,null,"CDIŞ.402","C Grubu","Dış","Daimi"]
[352,"SİSTEM GÜVENLİK HİZMETLERİ LİMİTED ŞİRKETİ","2017-02-23","2027-02-22","ANKARA ESENBOĞA HAVALİMANI",null,null,null,null,null,null,null,"X",null,null,null,"CDIŞ.403","C Grubu","Dış","Daimi"]
[353,"SANCAK UÇAK İÇİ SERVİSLERİ ANONİM ŞİRKETİ","2017-02-28","2027-02-27","KONYA HAVALİMANI",null,null,null,null,null,null,"X",null,null,null,null,"CDIŞ.404","C Grubu","Dış","Daimi"]
[354,"SİSTEM GÜVENLİK HİZMETLERİ LİMİTED ŞİRKETİ","2017-03-16","2027-03-15","MUĞLA MİLAS-BODRUM HAVALİMANI",null,null,null,null,null,null,null,"X",null,null,null,"CDIŞ.406","C Grubu","Dış","Daimi"]
[355,"SİSTEM GÜVENLİK HİZMETLERİ LİMİTED ŞİRKETİ","2017-03-16","2027-03-15","MUĞLA DALAMAN HAVALİMANI",null,null,null,null,null,null,null,"X",null,null,null,"CDIŞ.405","C Grubu","Dış","Daimi"]
[356,"ACM-AIR CHARTER MARKET UÇAK SERVİSİ VE TURİZM HİZMETLERİ LİMİTED ŞİRKETİ","2017-04-27","2027-04-26","GAZİPAŞA ALANYA HAVALİMANI",null,"X",null,null,null,null,null,null,null,null,null,"CDIŞ.407","C Grubu","Dış","Daimi"]
[357,"GÖZEN HAVACILIK VE TİCARET ANONİM ŞİRKETİ","2017-06-30","2025-06-29","ORDU-GİRESUN HAVALİMANI",null,"X",null,null,null,null,null,null,null,null,null,"CDIŞ.408","C Grubu","Dış","Daimi"]
[358,"TAV ÖZEL GÜVENLİK HİZMETLERİ ANONİM ŞİRKETİ","2017-08-09","2025-08-08","GAZİPAŞA ALANYA HAVALİMANI",null,null,null,null,null,null,null,"X",null,null,null,"CDIŞ.409","C Grubu","Dış","Daimi"]
[359,"BİLEN HAVACILIK LİMİTED ŞİRKETİ","2018-02-28","2026-02-27","DENİZLİ ÇARDAK HAVALİMANI",null,"X",null,null,null,null,null,null,null,null,null,"CDIŞ.412","C Grubu","Dış","Daimi"]
[360,"HAVAALANLARI YER HİZMETLERİ A.Ş.(HAVAŞ)","2018-07-18","2026-07-17","ERZİNCAN YILDIRIM AKBULUT HAVALİMANI",null,null,null,null,null,null,null,null,null,null,"X","ADIŞ.210","A Grubu","Dış","Daimi"]
[361,"GÖZEN HAVACILIK VE TİCARET ANONİM ŞİRKETİ","2018-08-03","2026-08-02","SİNOP HAVALİMANI",null,"X",null,null,null,null,null,null,null,null,null,"CDIŞ.416","C Grubu","Dış","Daimi"]
[362,"TAV ÖZEL GÜVENLİK HİZMETLERİ ANONİM ŞİRKETİ","2018-09-21","2026-09-20","İZMİR ADNAN MENDERES HAVALİMANI",null,null,null,null,null,null,null,"X",null,null,null,"CDIŞ.417","C Grubu","Dış","Daimi"]
[363,"ÇELEBİ HAVA SERVİSİ ANONİM ŞİRKETİ","2018-11-12","2026-11-11","KAYSERİ HAVALİMANI",null,"X",null,null,null,null,null,null,null,null,null,"ADIŞ.211","A Grubu","Dış","Daimi"]
[364,"ÇELEBİ HAVA SERVİSİ ANONİM ŞİRKETİ","2018-12-31","2025-12-30","UŞAK HAVALİMANI",null,null,"X","X",null,"X",null,null,null,null,null,"GA.034","A Grubu","Dış","Geçici"]
[365,"MERKÜR ULUSLARARASI TAŞIMACILIK TURİZM VE HAVACILIK ANONİM ŞİRKETİ","2019-01-08","2027-01-07","GAZİANTEP HAVALİMANI",null,"X",null,null,null,null,null,null,null,null,null,"CDIŞ.433","C Grubu","Dış","Daimi"]
[366,"HAVAALANLARI YER HİZMETLERİ A.Ş.(HAVAŞ)","2019-01-28","2026-01-27","TOKAT HAVALİMANI",null,"X","X","X","X","X",null,null,null,"X",null,"GA.035","A Grubu","Dış","Geçici"]
[367,"S SİSTEM LOJİSTİK HİZMETLER ANONİM ŞİRKETİ","2019-02-11","2025-08-10","İSTANBUL HAVALİMANI",null,null,null,null,"X",null,null,null,null,null,null,"CDIŞ.454","C Grubu","Dış","Daimi"]
[368,"MNG HAVAYOLLARI VE TAŞIMACILIK ANONİM ŞİRKETİ","2019-03-07","2025-09-06","İSTANBUL HAVALİMANI",null,null,null,null,"X",null,null,null,null,null,null,"CDIŞ.435","C Grubu","Dış","Daimi"]
[369,"MNG HAVAYOLLARI VE TAŞIMACILIK ANONİM ŞİRKETİ","2019-03-28","2025-09-27","İSTANBUL ATATÜRK HAVALİMANI",null,null,"X",null,"X","X",null,null,"X","X",null,"BDIŞ.244","B Grubu","Dış","Daimi"]
[370,"HAVAALANLARI YER HİZMETLERİ A.Ş.(HAVAŞ)","2019-04-02","2025-10-01","İSTANBUL ATATÜRK HAVALİMANI",null,"X","X","X","X","X",null,null,null,null,null,"ADIŞ.213","A Grubu","Dış","Daimi"]
[371,"TGS YER HİZMETLERİ ANONİM ŞİRKETİ","2019-04-03","2025-10-02","İSTANBUL ATATÜRK HAVALİMANI",null,"X","X","X","X","X",null,null,null,null,null,"ADIŞ.215","A Grubu","Dış","Daimi"]
[372,"BİLEN HAVACILIK LİMİTED ŞİRKETİ","2019-04-05","2027-04-04","İSTANBUL ATATÜRK HAVALİMANI",null,"X",null,null,null,null,null,null,null,"X",null,"CDIŞ.458","C Grubu","Dış","Daimi"]
[373,"GÖZEN HAVACILIK VE TİCARET ANONİM ŞİRKETİ","2019-05-10","2025-05-09","İSTANBUL ATATÜRK HAVALİMANI",null,"X",null,null,null,null,null,null,null,"X",null,"CDIŞ.462","C Grubu","Dış","Daimi"]
[374,"GÖZEN GÜVENLİK HİZMETLERİ VE TİCARET ANONİM ŞİRKETİ","2019-05-10","2025-05-09","GAZİPAŞA ALANYA HAVALİMANI",null,null,null,null,null,null,null,"X",null,null,null,"CDIŞ.461","C Grubu","Dış","Daimi"]
[375,"THY DO & CO İKRAM HİZMETLERİ ANONİM ŞİRKETİ","2019-05-16","2025-05-15","HATAY HAVALİMANI",null,null,null,null,null,null,"X",null,null,null,null,"CDIŞ.463","C Grubu","Dış","Daimi"]
[376,"THY DO & CO İKRAM HİZMETLERİ ANONİM ŞİRKETİ","2019-06-12","2025-06-11","KOCAELİ CENGİZ TOPEL HAVALİMANI",null,null,null,null,null,null,"X",null,null,null,null,"CDIŞ.464","C Grubu","Dış","Daimi"]
[377,"HAVAALANLARI YER HİZMETLERİ A.Ş.(HAVAŞ)","2019-09-03","2025-09-02","SİİRT HAVALİMANI",null,null,"X","X","X","X",null,null,null,null,null,"GA.040","A Grubu","Dış","Geçici"]
[378,"TAV ÖZEL GÜVENLİK HİZMETLERİ ANONİM ŞİRKETİ","2019-09-11","2025-09-10","ANTALYA HAVALİMANI",null,null,null,null,null,null,null,"X",null,null,null,"CDIŞ.465","C Grubu","Dış","Daimi"]
[379,"MERKÜR ULUSLARARASI TAŞIMACILIK TURİZM VE HAVACILIK ANONİM ŞİRKETİ","2019-10-03","2025-10-02","İSTANBUL ATATÜRK HAVALİMANI",null,"X",null,null,null,null,null,null,null,null,null,"CDIŞ.466","C Grubu","Dış","Daimi"]
[380,"UNIVERSAL HAVACILIK ANONİM ŞİRKETİ","2020-01-09","2026-01-08","TÜM HAVALİMANLARI","X",null,null,null,null,null,null,null,null,null,null,"CDIŞ.467","C Grubu","Dış","Daimi"]
[381,"UNIVERSAL HAVACILIK ANONİM ŞİRKETİ","2020-01-09","2026-01-08","İSTANBUL ATATÜRK HAVALİMANI",null,"X",null,null,null,null,null,null,null,null,null,"CDIŞ.468","C Grubu","Dış","Daimi"]
[382,"SİLKWAY KARGO TAŞIMACILIĞI VE TUR.LTD.ŞİRKETİ","2020-03-17","2026-03-16","İSTANBUL HAVALİMANI",null,"X",null,null,null,null,null,null,null,null,null,"CDIŞ.479","C Grubu","Dış","Daimi"]
[383,"MERKÜR ULUSLARARASI TAŞIMACILIK TURİZM VE HAVACILIK ANONİM ŞİRKETİ","2020-06-05","2026-06-04","ZAFER HAVALİMANI",null,"X",null,null,null,null,null,null,null,null,null,"CDIŞ.470","C Grubu","Dış","Daimi"]
[384,"MERKÜR ULUSLARARASI TAŞIMACILIK TURİZM VE HAVACILIK ANONİM ŞİRKETİ","2020-06-05","2026-06-04","SAMSUN ÇARŞAMBA HAVALİMANI",null,"X",null,null,null,null,null,null,null,null,null,"CDIŞ.475","C Grubu","Dış","Daimi"]
[385,"MERKÜR ULUSLARARASI TAŞIMACILIK TURİZM VE HAVACILIK ANONİM ŞİRKETİ","2020-06-05","2026-06-04","İZMİR ADNAN MENDERES HAVALİMANI",null,"X",null,null,null,null,null,null,null,null,null,"CDIŞ.469","C Grubu","Dış","Daimi"]
[386,"MERKÜR ULUSLARARASI TAŞIMACILIK TURİZM VE HAVACILIK ANONİM ŞİRKETİ","2020-06-05","2026-06-04","DENİZLİ ÇARDAK HAVALİMANI",null,"X",null,null,null,null,null,null,null,null,null,"CDIŞ.471","C Grubu","Dış","Daimi"]
[{"$f":"IF(ISTEXT(B389),A388+1,\"\")","v":387},"MERKÜR ULUSLARARASI TAŞIMACILIK TURİZM VE HAVACILIK ANONİM ŞİRKETİ","2020-06-05","2026-06-04","ISPARTA SÜLEYMAN DEMİREL HAVALİMANI",null,"X",null,null,null,null,null,null,null,null,null,"CDIŞ.472","C Grubu","Dış","Daimi"]
[388,"MERKÜR ULUSLARARASI TAŞIMACILIK TURİZM VE HAVACILIK ANONİM ŞİRKETİ","2020-06-05","2026-06-04","MALATYA HAVALİMANI",null,"X",null,null,null,null,null,null,null,null,null,"CDIŞ.473","C Grubu","Dış","Daimi"]
[389,"MERKÜR ULUSLARARASI TAŞIMACILIK TURİZM VE HAVACILIK ANONİM ŞİRKETİ","2020-06-05","2026-06-04","BURSA YENİŞEHİR HAVALİMANI",null,"X",null,null,null,null,null,null,null,null,null,"CDIŞ.474","C Grubu","Dış","Daimi"]
[390,"AKT TURİZM KARGO HAVACILIK İNŞAAT TİCARET ANONİM ŞİRKETİ","2020-12-22","2026-12-21","TÜM HAVALİMANLARI","X",null,null,null,null,null,null,null,null,null,null,"CDIŞ.487","C Grubu","Dış","Daimi"]
[391,"AKT TURİZM KARGO HAVACILIK İNŞAAT TİCARET ANONİM ŞİRKETİ","2020-12-22","2026-12-21","İSTANBUL HAVALİMANI",null,"X",null,null,null,null,null,null,null,null,null,"CDIŞ.488","C Grubu","Dış","Daimi"]
[392,"AKT TURİZM KARGO HAVACILIK İNŞAAT TİCARET ANONİM ŞİRKETİ","2020-12-22","2026-12-21","İSTANBUL ATATÜRK HAVALİMANI",null,"X",null,null,null,null,null,null,null,null,null,"CDIŞ.489","C Grubu","Dış","Daimi"]
[393,"MAPLE GROUP HAVACILIK TURİZM DIŞ TİCARET ANONİM ŞİRKETİ","2021-03-26","2027-03-25","TRABZON HAVALİMANI",null,"X",null,null,null,null,null,null,null,null,null,"CDIŞ.480","C Grubu","Dış","Daimi"]
[394,"MERKÜR ULUSLARARASI TAŞIMACILIK TURİZM VE HAVACILIK ANONİM ŞİRKETİ","2021-04-01","2027-03-31","MUĞLA MİLAS-BODRUM HAVALİMANI",null,"X",null,null,null,null,null,null,null,null,null,"CDIŞ.481","C Grubu","Dış","Daimi"]
[395,"ŞARK HAVA KARGO TURİZM TAŞIMACILIK GIDA LİMİTED ŞİRKETİ","2021-09-13","2025-09-12","TÜM HAVALİMANLARI","X",null,null,null,null,null,null,null,null,null,null,"CDIŞ.490","C Grubu","Dış","Daimi"]
[396,"ŞARK HAVA KARGO TURİZM TAŞIMACILIK GIDA LİMİTED ŞİRKETİ","2021-09-13","2025-09-12","İSTANBUL HAVALİMANI",null,"X",null,null,null,null,null,null,null,null,null,"CDIŞ.491","C Grubu","Dış","Daimi"]
[397,"HAKVAR TURİZM LİMİTED ŞİRKETİ","2021-10-11","2025-10-10","TÜM HAVALİMANLARI","X",null,null,null,null,null,null,null,null,null,null,"CDIŞ.492","C Grubu","Dış","Daimi"]
[398,"ADRİYATİK TAŞIMACILIK DIŞ TİCARET LİMİTED ŞİRKETİ","2021-11-02","2025-11-01","KAYSERİ HAVALİMANI",null,"X",null,null,null,null,null,null,null,null,null,"CDIŞ.493","C Grubu","Dış","Daimi"]
[399,"HAKVAR TURİZM LİMİTED ŞİRKETİ","2022-01-03","2026-01-02","İSTANBUL HAVALİMANI",null,"X",null,null,null,null,null,null,null,null,null,"CDIŞ.494","C Grubu","Dış","Daimi"]
[400,"HAVAALANLARI YER HİZMETLERİ A.Ş.(HAVAŞ)","2022-01-11","2026-01-10","RİZE-ARTVİN HAVALİMANI",null,null,null,null,null,null,null,null,null,null,"X","ADIŞ.219","A Grubu","Dış","Daimi"]
[401,"THY DO & CO İKRAM HİZMETLERİ ANONİM ŞİRKETİ","2022-03-10","2026-03-09","İSTANBUL ATATÜRK HAVALİMANI",null,null,null,null,null,null,"X",null,null,null,null,"CDIŞ.495","C Grubu","Dış","Daimi"]
[402,"BONAİR HAVACILIK TİCARET VE SANAYİ ANONİM ŞİRKETİ","2022-03-23","2026-03-22","İSTANBUL ATATÜRK HAVALİMANI",null,null,null,"X",null,null,null,null,null,"X",null,"BDIŞ.255","B Grubu","Dış","Daimi"]
[403,"BONAİR HAVACILIK TİCARET VE SANAYİ ANONİM ŞİRKETİ","2022-03-23","2026-03-22","İSTANBUL ATATÜRK HAVALİMANI",null,null,"X",null,null,null,null,null,null,null,null,"BİÇ.256","B Grubu","İç","Daimi"]
[404,"ACM-AIR CHARTER MARKET UÇAK SERVİSİ VE TURİZM HİZMETLERİ LİMİTED ŞİRKETİ","2022-03-28","2026-03-27","VAN FERİT MELEN HAVALİMANI",null,"X",null,null,null,null,null,null,null,null,null,"CDIŞ.496","C Grubu","Dış","Daimi"]
[405,"ACM-AIR CHARTER MARKET UÇAK SERVİSİ VE TURİZM HİZMETLERİ LİMİTED ŞİRKETİ","2022-04-28","2026-04-27","ZAFER HAVALİMANI",null,"X",null,null,null,null,null,null,null,null,null,"CDIŞ.498","C Grubu","Dış","Daimi"]
[406,"ACM-AIR CHARTER MARKET UÇAK SERVİSİ VE TURİZM HİZMETLERİ LİMİTED ŞİRKETİ","2022-04-28","2026-04-27","SAMSUN ÇARŞAMBA HAVALİMANI",null,"X",null,null,null,null,null,null,null,null,null,"CDIŞ.497","C Grubu","Dış","Daimi"]
[407,"ŞARK HAVA KARGO TURİZM TAŞIMACILIK GIDA LİMİTED ŞİRKETİ","2022-05-10","2026-05-09","MUĞLA DALAMAN HAVALİMANI",null,"X",null,null,null,null,null,null,null,null,null,"CDIŞ.499","C Grubu","Dış","Daimi"]
[408,"ŞARK HAVA KARGO TURİZM TAŞIMACILIK GIDA LİMİTED ŞİRKETİ","2022-05-10","2026-05-09","MUĞLA MİLAS-BODRUM HAVALİMANI",null,"X",null,null,null,null,null,null,null,null,null,"CDIŞ.500","C Grubu","Dış","Daimi"]
[409,"ŞARK HAVA KARGO TURİZM TAŞIMACILIK GIDA LİMİTED ŞİRKETİ","2022-05-10","2026-05-09","DENİZLİ ÇARDAK HAVALİMANI",null,"X",null,null,null,null,null,null,null,null,null,"CDIŞ.503","C Grubu","Dış","Daimi"]
[410,"ŞARK HAVA KARGO TURİZM TAŞIMACILIK GIDA LİMİTED ŞİRKETİ","2022-05-10","2026-05-09","ANKARA ESENBOĞA HAVALİMANI",null,"X",null,null,null,null,null,null,null,null,null,"CDIŞ.502","C Grubu","Dış","Daimi"]
[411,"ŞARK HAVA KARGO TURİZM TAŞIMACILIK GIDA LİMİTED ŞİRKETİ","2022-05-10","2026-05-09","ANTALYA HAVALİMANI",null,"X",null,null,null,null,null,null,null,null,null,"CDIŞ.501","C Grubu","Dış","Daimi"]
[412,"ÇELEBİ HAVA SERVİSİ ANONİM ŞİRKETİ","2022-05-11","2026-05-10","RİZE-ARTVİN HAVALİMANI",null,null,"X","X","X","X",null,null,null,null,null,"ADIŞ.220","A Grubu","Dış","Daimi"]
[413,"MERKÜR ULUSLARARASI TAŞIMACILIK TURİZM VE HAVACILIK ANONİM ŞİRKETİ","2022-06-09","2026-06-08","MUĞLA DALAMAN HAVALİMANI",null,"X",null,null,null,null,null,null,null,null,null,"CDIŞ.504","C Grubu","Dış","Daimi"]
[414,"GÖZEN HAVACILIK VE TİCARET ANONİM ŞİRKETİ","2022-06-22","2026-06-21","RİZE-ARTVİN HAVALİMANI",null,"X",null,null,null,null,null,null,null,null,null,"CDIŞ.505","C Grubu","Dış","Daimi"]
[415,"BİLEN HAVACILIK LİMİTED ŞİRKETİ","2022-06-28","2026-06-27","ZAFER HAVALİMANI",null,"X",null,null,null,null,null,null,null,null,null,"CDIŞ.506","C Grubu","Dış","Daimi"]
[416,"THY DO & CO İKRAM HİZMETLERİ ANONİM ŞİRKETİ","2022-08-18","2026-08-17","AMASYA MERZİFON HAVALİMANI",null,null,null,null,null,null,"X",null,null,null,null,"CDIŞ.507","C Grubu","Dış","Daimi"]
[417,"THY DO & CO İKRAM HİZMETLERİ ANONİM ŞİRKETİ","2022-08-18","2026-08-17","RİZE-ARTVİN HAVALİMANI",null,null,null,null,null,null,"X",null,null,null,null,"CDIŞ.508","C Grubu","Dış","Daimi"]
[418,"THY DO & CO İKRAM HİZMETLERİ ANONİM ŞİRKETİ","2022-08-18","2026-08-17","ELAZIĞ HAVALİMANI",null,null,null,null,null,null,"X",null,null,null,null,"CDIŞ.509","C Grubu","Dış","Daimi"]
[419,"HAKVAR TURİZM LİMİTED ŞİRKETİ","2022-09-09","2026-09-08","DENİZLİ ÇARDAK HAVALİMANI",null,"X",null,null,null,null,null,null,null,null,null,"CDIŞ.510","C Grubu","Dış","Daimi"]
[420,"HAKVAR TURİZM LİMİTED ŞİRKETİ","2022-09-09","2026-09-08","TRABZON HAVALİMANI",null,"X",null,null,null,null,null,null,null,null,null,"CDIŞ.512","C Grubu","Dış","Daimi"]
[421,"HAKVAR TURİZM LİMİTED ŞİRKETİ","2022-09-09","2026-09-08","TEKİRDAĞ ÇORLU ATATÜRK HAVALİMANI",null,"X",null,null,null,null,null,null,null,null,null,"CDIŞ.511","C Grubu","Dış","Daimi"]
[422,"HAKVAR TURİZM LİMİTED ŞİRKETİ","2022-11-22","2026-11-21","ANTALYA HAVALİMANI",null,"X",null,null,null,null,null,null,null,null,null,"CDIŞ.513","C Grubu","Dış","Daimi"]
[423,"ŞARK HAVA KARGO TURİZM TAŞIMACILIK GIDA LİMİTED ŞİRKETİ","2022-11-22","2026-11-21","İZMİR ADNAN MENDERES HAVALİMANI",null,"X",null,null,null,null,null,null,null,null,null,"CDIŞ.515","C Grubu","Dış","Daimi"]
[424,"ŞARK HAVA KARGO TURİZM TAŞIMACILIK GIDA LİMİTED ŞİRKETİ","2022-11-22","2026-11-21","TRABZON HAVALİMANI",null,"X",null,null,null,null,null,null,null,null,null,"CDIŞ.516","C Grubu","Dış","Daimi"]
[425,"ŞARK HAVA KARGO TURİZM TAŞIMACILIK GIDA LİMİTED ŞİRKETİ","2022-11-22","2026-11-21","ISPARTA SÜLEYMAN DEMİREL HAVALİMANI",null,"X",null,null,null,null,null,null,null,null,null,"CDIŞ.520","C Grubu","Dış","Daimi"]
[426,"HAKVAR TURİZM LİMİTED ŞİRKETİ","2022-11-22","2026-11-21","ANKARA ESENBOĞA HAVALİMANI",null,"X",null,null,null,null,null,null,null,null,null,"CDIŞ.514","C Grubu","Dış","Daimi"]
[427,"ŞARK HAVA KARGO TURİZM TAŞIMACILIK GIDA LİMİTED ŞİRKETİ","2022-11-22","2026-11-21","TEKİRDAĞ ÇORLU ATATÜRK HAVALİMANI",null,"X",null,null,null,null,null,null,null,null,null,"CDIŞ.519","C Grubu","Dış","Daimi"]
[428,"AKVERDİ ULUSLARARASI HAVACILIK TURİZM VE TAŞIMACILIK TİCARET LİMİTED ŞİRKETİ","2022-12-08","2026-12-07","TÜM HAVALİMANLARI","X",null,null,null,null,null,null,null,null,null,null,"CDIŞ.521","C Grubu","Dış","Daimi"]
[429,"AKVERDİ ULUSLARARASI HAVACILIK TURİZM VE TAŞIMACILIK TİCARET LİMİTED ŞİRKETİ","2022-12-08","2026-12-07","İSTANBUL HAVALİMANI",null,"X",null,null,null,null,null,null,null,null,null,"CDIŞ.522","C Grubu","Dış","Daimi"]
[430,"MAVİ GÖK HAVACILIK ANONİM ŞİRKETİ","2022-12-22","2026-12-21","ANTALYA HAVALİMANI",null,null,null,null,null,null,null,null,null,"X",null,"BDIŞ.258","B Grubu","Dış","Daimi"]
[431,"MAVİ GÖK HAVACILIK ANONİM ŞİRKETİ","2022-12-22","2026-12-21","MUĞLA DALAMAN HAVALİMANI",null,null,null,null,null,null,null,null,null,"X",null,"BDIŞ.257","B Grubu","Dış","Daimi"]
[432,"MAVİ GÖK HAVACILIK ANONİM ŞİRKETİ","2022-12-22","2026-12-21","MUĞLA MİLAS-BODRUM HAVALİMANI",null,null,null,null,null,null,null,null,null,"X",null,"BDIŞ.259","B Grubu","Dış","Daimi"]
[433,"ŞARK HAVA KARGO TURİZM TAŞIMACILIK GIDA LİMİTED ŞİRKETİ","2023-01-26","2027-01-25","VAN FERİT MELEN HAVALİMANI",null,"X",null,null,null,null,null,null,null,null,null,"CDIŞ.523","C Grubu","Dış","Daimi"]
[434,"MAPLE GROUP HAVACILIK TURİZM DIŞ TİCARET ANONİM ŞİRKETİ","2023-03-24","2027-03-23","ANKARA ESENBOĞA HAVALİMANI",null,"X",null,null,null,null,null,null,null,null,null,"CDIŞ.525","C Grubu","Dış","Daimi"]
[435,"THY DO & CO İKRAM HİZMETLERİ ANONİM ŞİRKETİ","2023-03-24","2027-03-23","KASTAMONU HAVALİMANI",null,null,null,null,null,null,"X",null,null,null,null,"CDIŞ.526","C Grubu","Dış","Daimi"]
[436,"ACM-AIR CHARTER MARKET UÇAK SERVİSİ VE TURİZM HİZMETLERİ LİMİTED ŞİRKETİ","2023-03-24","2027-03-23","İSTANBUL ATATÜRK HAVALİMANI",null,"X",null,null,null,null,null,null,null,"X",null,"CDIŞ.524","C Grubu","Dış","Daimi"]
[437,"MERKÜR ULUSLARARASI TAŞIMACILIK TURİZM VE HAVACILIK ANONİM ŞİRKETİ","2023-05-29","2025-05-28","GAZİPAŞA ALANYA HAVALİMANI",null,"X",null,null,null,null,null,null,null,null,null,"CDIŞ.528","C Grubu","Dış","Daimi"]
[438,"MERKÜR ULUSLARARASI TAŞIMACILIK TURİZM VE HAVACILIK ANONİM ŞİRKETİ","2023-05-29","2025-05-28","RİZE-ARTVİN HAVALİMANI",null,"X",null,null,null,null,null,null,null,null,null,"CDIŞ.527","C Grubu","Dış","Daimi"]
[439,"THY DO & CO İKRAM HİZMETLERİ ANONİM ŞİRKETİ","2023-06-06","2025-06-05","TEKİRDAĞ ÇORLU ATATÜRK HAVALİMANI",null,null,null,null,null,null,"X",null,null,null,null,"CDIŞ.530","C Grubu","Dış","Daimi"]
[440,"THY DO & CO İKRAM HİZMETLERİ ANONİM ŞİRKETİ","2023-06-06","2025-06-05","ÇANAKKALE HAVALİMANI",null,null,null,null,null,null,"X",null,null,null,null,"CDIŞ.531","C Grubu","Dış","Daimi"]
[441,"THY DO & CO İKRAM HİZMETLERİ ANONİM ŞİRKETİ","2023-06-06","2025-06-05","BALIKESİR KOCA SEYİT HAVALİMANI",null,null,null,null,null,null,"X",null,null,null,null,"CDIŞ.529","C Grubu","Dış","Daimi"]
[442,"TAV ÖZEL GÜVENLİK HİZMETLERİ ANONİM ŞİRKETİ","2023-07-06","2025-07-05","MUĞLA MİLAS-BODRUM HAVALİMANI",null,null,null,null,null,null,null,"X",null,null,null,"CDIŞ.532","C Grubu","Dış","Daimi"]
[443,"GÖZEN GÜVENLİK HİZMETLERİ VE TİCARET ANONİM ŞİRKETİ","2023-07-17","2025-07-16","SAMSUN ÇARŞAMBA HAVALİMANI",null,null,null,null,null,null,null,"X",null,null,null,"CDIŞ.533","C Grubu","Dış","Daimi"]
[444,"GÖZEN GÜVENLİK HİZMETLERİ VE TİCARET ANONİM ŞİRKETİ","2023-07-17","2025-07-16","KAYSERİ HAVALİMANI",null,null,null,null,null,null,null,"X",null,null,null,"CDIŞ.534","C Grubu","Dış","Daimi"]
[445,"GÖZEN GÜVENLİK HİZMETLERİ VE TİCARET ANONİM ŞİRKETİ","2023-07-17","2025-07-16","KAPADOKYA HAVALİMANI",null,null,null,null,null,null,null,"X",null,null,null,"CDIŞ.535","C Grubu","Dış","Daimi"]
[446,"GÖZEN GÜVENLİK HİZMETLERİ VE TİCARET ANONİM ŞİRKETİ","2023-07-17","2025-07-16","ZAFER HAVALİMANI",null,null,null,null,null,null,null,"X",null,null,null,"CDIŞ.536","C Grubu","Dış","Daimi"]
[447,"GÖZEN GÜVENLİK HİZMETLERİ VE TİCARET ANONİM ŞİRKETİ","2023-07-17","2025-07-16","TRABZON HAVALİMANI",null,null,null,null,null,null,null,"X",null,null,null,"CDIŞ.537","C Grubu","Dış","Daimi"]
[448,"PELYA TURİZM SEYAHAT ACENTESİ TAŞIMACILIK SANAYİ VE TİCARET LİMİTED ŞİRKETİ","2023-08-23","2025-08-22","İSTANBUL HAVALİMANI",null,"X",null,null,null,null,null,null,null,null,null,"CDIŞ.541","C Grubu","Dış","Daimi"]
[449,"PELYA TURİZM SEYAHAT ACENTESİ TAŞIMACILIK SANAYİ VE TİCARET LİMİTED ŞİRKETİ","2023-08-23","2025-08-22","ANTALYA HAVALİMANI",null,"X",null,null,null,null,null,null,null,null,null,"CDIŞ.540","C Grubu","Dış","Daimi"]
[450,"PELYA TURİZM SEYAHAT ACENTESİ TAŞIMACILIK SANAYİ VE TİCARET LİMİTED ŞİRKETİ","2023-08-23","2025-08-22","TÜM HAVALİMANLARI","X",null,null,null,null,null,null,null,null,null,null,"CDIŞ.539","C Grubu","Dış","Daimi"]
[{"$f":"IF(ISTEXT(B453),A452+1,\"\")","v":451},"ŞARK HAVA KARGO TURİZM TAŞIMACILIK GIDA LİMİTED ŞİRKETİ","2023-08-29","2025-08-28","KAPADOKYA HAVALİMANI",null,"X",null,null,null,null,null,null,null,null,null,"CDIŞ.543","C Grubu","Dış","Daimi"]
[452,"ŞARK HAVA KARGO TURİZM TAŞIMACILIK GIDA LİMİTED ŞİRKETİ","2023-08-29","2025-08-28","GAZİPAŞA ALANYA HAVALİMANI",null,"X",null,null,null,null,null,null,null,null,null,"CDIŞ.545","C Grubu","Dış","Daimi"]
[453,"ŞARK HAVA KARGO TURİZM TAŞIMACILIK GIDA LİMİTED ŞİRKETİ","2023-08-29","2025-08-28","RİZE-ARTVİN HAVALİMANI",null,"X",null,null,null,null,null,null,null,null,null,"CDIŞ.544","C Grubu","Dış","Daimi"]
[454,"İGA GÜVENLİK HİZMETLERİ ANONİM ŞİRKETİ","2023-11-27","2025-11-26","İSTANBUL HAVALİMANI",null,null,null,null,null,null,null,"X",null,null,null,"CDIŞ.546","C Grubu","Dış","Daimi"]
[455,"PELYA TURİZM SEYAHAT ACENTESİ TAŞIMACILIK SANAYİ VE TİCARET LİMİTED ŞİRKETİ","2024-01-02","2026-01-01","TRABZON HAVALİMANI",null,"X",null,null,null,null,null,null,null,null,null,"CDIŞ.547","C Grubu","Dış","Daimi"]
[456,"HAKVAR TURİZM LİMİTED ŞİRKETİ","2024-01-29","2026-01-28","BURSA YENİŞEHİR HAVALİMANI",null,"X",null,null,null,null,null,null,null,null,null,"CDIŞ.548","C Grubu","Dış","Daimi"]
[457,"GENEL HAVACILIK ANONİM ŞİRKETİ","2024-04-02","2026-04-01","İSTANBUL ATATÜRK HAVALİMANI",null,null,"X","X",null,null,null,null,null,null,null,"BİÇ.260","B Grubu","İç","Daimi"]
[458,"TAV ÖZEL GÜVENLİK HİZMETLERİ ANONİM ŞİRKETİ","2024-06-10","2026-06-09","TRABZON HAVALİMANI",null,null,null,null,null,null,null,"X",null,null,null,"CDIŞ.550","C Grubu","Dış","Daimi"]
[459,"TAV ÖZEL GÜVENLİK HİZMETLERİ ANONİM ŞİRKETİ","2024-06-10","2026-06-09","MUĞLA DALAMAN HAVALİMANI",null,null,null,null,null,null,null,"X",null,null,null,"CDIŞ.549","C Grubu","Dış","Daimi"]
[460,"AKUA-TRANS TURİZM HAVACILIK LİMİTED ŞİRKETİ","2024-06-24","2026-06-23","İZMİR ADNAN MENDERES HAVALİMANI",null,"X",null,null,null,null,null,null,null,null,null,"CDIŞ.551","C Grubu","Dış","Daimi"]
[461,"AEROGLOBE AVIATION SERVICES HAVACILIK VE TİCARET ANONİM ŞİRKETİ","2024-07-02","2026-07-01","TÜM HAVALİMANLARI","X",null,null,null,null,null,null,null,null,null,null,"CDIŞ.552","C Grubu","Dış","Daimi"]
[462,"AEROGLOBE AVIATION SERVICES HAVACILIK VE TİCARET ANONİM ŞİRKETİ","2024-07-02","2026-07-01","İSTANBUL HAVALİMANI",null,"X",null,null,null,null,null,null,null,null,null,"CDIŞ.553","C Grubu","Dış","Daimi"]
[463,"GÖZEN GÜVENLİK HİZMETLERİ VE TİCARET ANONİM ŞİRKETİ","2024-07-16","2025-07-15","İSTANBUL ATATÜRK HAVALİMANI",null,null,null,null,null,null,null,null,null,null,"X","GCDIŞ.052","C Grubu","Dış","Geçici"]
[464,"ADRİYATİK TAŞIMACILIK DIŞ TİCARET LİMİTED ŞİRKETİ","2024-08-11","2025-06-16","ÇUKUROVA ULUSLARARASI HAVALİMANI",null,"X",null,null,null,null,null,null,null,null,null,"CDIŞ.286","C Grubu","Dış","Daimi"]
[465,"MERKÜR ULUSLARARASI TAŞIMACILIK TURİZM VE HAVACILIK ANONİM ŞİRKETİ","2024-08-11","2025-08-13","ÇUKUROVA ULUSLARARASI HAVALİMANI",null,"X",null,null,null,null,null,null,null,null,null,"CDIŞ.381","C Grubu","Dış","Daimi"]
[466,"ŞARK HAVA KARGO TURİZM TAŞIMACILIK GIDA LİMİTED ŞİRKETİ","2024-08-11","2025-08-28","ÇUKUROVA ULUSLARARASI HAVALİMANI",null,"X",null,null,null,null,null,null,null,null,null,"CDIŞ.542","C Grubu","Dış","Daimi"]
[467,"TÜRK HAVA YOLLARI ANONİM ORTAKLIĞI","2024-08-11","2025-09-25","ÇUKUROVA ULUSLARARASI HAVALİMANI",null,null,null,null,null,null,null,null,"X",null,null,"BDIŞ.167","B Grubu","Dış","Daimi"]
[468,"BİLEN HAVACILIK LİMİTED ŞİRKETİ","2024-08-11","2026-04-20","ÇUKUROVA ULUSLARARASI HAVALİMANI",null,"X",null,null,null,null,null,null,null,null,null,"CDIŞ.187","C Grubu","Dış","Daimi"]
[469,"GÖZEN HAVACILIK VE TİCARET ANONİM ŞİRKETİ","2024-08-11","2026-06-07","ÇUKUROVA ULUSLARARASI HAVALİMANI",null,null,null,null,null,null,null,null,null,"X",null,"CDIŞ.252","C Grubu","Dış","Daimi"]
[470,"AKUA-TRANS TURİZM HAVACILIK LİMİTED ŞİRKETİ","2024-08-11","2026-07-31","ÇUKUROVA ULUSLARARASI HAVALİMANI",null,"X",null,null,null,null,null,null,null,null,null,"CDIŞ.554","C Grubu","Dış","Daimi"]
[471,"GÖZEN HAVACILIK VE TİCARET ANONİM ŞİRKETİ","2024-08-11","2026-08-13","ÇUKUROVA ULUSLARARASI HAVALİMANI",null,"X",null,null,null,null,null,null,null,null,null,"CDIŞ.200","C Grubu","Dış","Daimi"]
[472,"GÖZEN GÜVENLİK HİZMETLERİ VE TİCARET ANONİM ŞİRKETİ","2024-08-11","2025-07-16","ÇUKUROVA ULUSLARARASI HAVALİMANI",null,null,null,null,null,null,null,"X",null,null,null,"CDIŞ.538","C Grubu","Dış","Daimi"]
[473,"ÇELEBİ HAVA SERVİSİ ANONİM ŞİRKETİ","2024-08-11","2025-12-16","ÇUKUROVA ULUSLARARASI HAVALİMANI",null,null,"X","X","X","X",null,null,null,null,null,"ADIŞ.188","A Grubu","Dış","Daimi"]
[474,"TGS YER HİZMETLERİ ANONİM ŞİRKETİ","2024-08-11","2025-12-30","ÇUKUROVA ULUSLARARASI HAVALİMANI",null,"X","X","X","X","X",null,null,null,null,null,"ADIŞ.179","A Grubu","Dış","Daimi"]
[475,"TÜRK HAVA YOLLARI ANONİM ORTAKLIĞI","2024-08-11","2026-03-26","ÇUKUROVA ULUSLARARASI HAVALİMANI",null,null,null,null,null,null,null,null,null,"X",null,"BDIŞ.164","B Grubu","Dış","Daimi"]
[476,"F.L.Y HAVA KARGO SERVİS HAVACILIK VE TURİZM HİZMETLERİ LİMİTED ŞİRKETİ","2024-08-11","2026-05-16","ÇUKUROVA ULUSLARARASI HAVALİMANI",null,"X",null,null,null,null,null,null,null,null,null,"CDIŞ.241","C Grubu","Dış","Daimi"]
[477,"BİLEN HAVACILIK LİMİTED ŞİRKETİ","2024-08-11","2026-10-10","ÇUKUROVA ULUSLARARASI HAVALİMANI",null,null,null,null,null,null,null,null,null,"X",null,"CDIŞ.271","C Grubu","Dış","Daimi"]
[478,"HAVAALANLARI YER HİZMETLERİ A.Ş.(HAVAŞ)","2024-08-11","2026-12-18","ÇUKUROVA ULUSLARARASI HAVALİMANI",null,null,null,null,null,null,null,null,null,null,"X","ADIŞ.070","A Grubu","Dış","Daimi"]
[479,"THY DO & CO İKRAM HİZMETLERİ ANONİM ŞİRKETİ","2024-08-11","2027-03-15","ÇUKUROVA ULUSLARARASI HAVALİMANI",null,null,null,null,null,null,"X",null,null,null,null,"CDIŞ.157","C Grubu","Dış","Daimi"]
[480,"TÜRK HAVA YOLLARI ANONİM ORTAKLIĞI","2024-08-13","2026-08-12","İSTANBUL HAVALİMANI",null,null,null,null,null,"X",null,null,null,null,null,"BDIŞ.261","B Grubu","Dış","Daimi"]
[481,"SİSTEM GÜVENLİK HİZMETLERİ LİMİTED ŞİRKETİ","2024-08-26","2026-08-25","TRABZON HAVALİMANI",null,null,null,null,null,null,null,"X",null,null,null,"CDIŞ.555","C Grubu","Dış","Daimi"]
[482,"AKUA-TRANS TURİZM HAVACILIK LİMİTED ŞİRKETİ","2024-08-29","2026-08-28","MUĞLA DALAMAN HAVALİMANI",null,"X",null,null,null,null,null,null,null,null,null,"CDIŞ.557","C Grubu","Dış","Daimi"]
[483,"AKUA-TRANS TURİZM HAVACILIK LİMİTED ŞİRKETİ","2024-08-29","2026-08-28","MUĞLA MİLAS-BODRUM HAVALİMANI",null,"X",null,null,null,null,null,null,null,null,null,"CDIŞ.556","C Grubu","Dış","Daimi"]
[484,"THY DESTEK HİZMETLERİ ANONİM ŞİRKETİ","2024-09-24","2026-09-23","İSTANBUL HAVALİMANI",null,"X",null,null,null,null,null,null,null,null,null,"CDIŞ.558","C Grubu","Dış","Daimi"]
[485,"PELYA TURİZM SEYAHAT ACENTESİ TAŞIMACILIK SANAYİ VE TİCARET LİMİTED ŞİRKETİ","2024-10-14","2026-10-13","GAZİPAŞA ALANYA HAVALİMANI",null,"X",null,null,null,null,null,null,null,null,null,"CDIŞ.559","C Grubu","Dış","Daimi"]
[486,"PELYA TURİZM SEYAHAT ACENTESİ TAŞIMACILIK SANAYİ VE TİCARET LİMİTED ŞİRKETİ","2024-10-14","2026-10-13","RİZE-ARTVİN HAVALİMANI",null,"X",null,null,null,null,null,null,null,null,null,"CDIŞ.560","C Grubu","Dış","Daimi"]
[487,"SİSTEM GÜVENLİK HİZMETLERİ LİMİTED ŞİRKETİ","2024-10-18","2026-10-17","KAYSERİ HAVALİMANI",null,null,null,null,null,null,null,"X",null,null,null,"CDIŞ.561","C Grubu","Dış","Daimi"]
[488,"SİSTEM GÜVENLİK HİZMETLERİ LİMİTED ŞİRKETİ","2024-10-18","2026-10-17","GAZİANTEP HAVALİMANI",null,null,null,null,null,null,null,"X",null,null,null,"CDIŞ.562","C Grubu","Dış","Daimi"]
[489,"SİSTEM GÜVENLİK HİZMETLERİ LİMİTED ŞİRKETİ","2024-10-21","2026-10-20","ÇUKUROVA ULUSLARARASI HAVALİMANI",null,null,null,null,null,null,null,"X",null,null,null,"CDIŞ.564","C Grubu","Dış","Daimi"]
[490,"SİSTEM GÜVENLİK HİZMETLERİ LİMİTED ŞİRKETİ","2024-10-21","2026-10-20","GAZİPAŞA ALANYA HAVALİMANI",null,null,null,null,null,null,null,"X",null,null,null,"CDIŞ.563","C Grubu","Dış","Daimi"]
[491,"SANCAK UÇAK İÇİ SERVİSLERİ ANONİM ŞİRKETİ","2024-11-22","2026-11-21","TRABZON HAVALİMANI",null,null,null,null,null,null,"X",null,null,null,null,"CDIŞ.567","C Grubu","Dış","Daimi"]
[492,"SANCAK UÇAK İÇİ SERVİSLERİ ANONİM ŞİRKETİ","2024-11-22","2026-11-21","ÇUKUROVA ULUSLARARASI HAVALİMANI",null,null,null,null,null,null,"X",null,null,null,null,"CDIŞ.565","C Grubu","Dış","Daimi"]
[493,"SANCAK UÇAK İÇİ SERVİSLERİ ANONİM ŞİRKETİ","2024-11-22","2026-11-21","KAYSERİ HAVALİMANI",null,null,null,null,null,null,"X",null,null,null,null,"CDIŞ.568","C Grubu","Dış","Daimi"]
[494,"SANCAK UÇAK İÇİ SERVİSLERİ ANONİM ŞİRKETİ","2024-11-22","2026-11-21","GAZİANTEP HAVALİMANI",null,null,null,null,null,null,"X",null,null,null,null,"CDIŞ.566","C Grubu","Dış","Daimi"]
[495,"BİLEN HAVACILIK LİMİTED ŞİRKETİ","2025-01-07","2027-01-06","MUĞLA MİLAS-BODRUM HAVALİMANI",null,"X",null,null,null,null,null,null,null,null,null,"CDIŞ.569","C Grubu","Dış","Daimi"]
[496,"UNIVERSAL HAVACILIK ANONİM ŞİRKETİ","2025-02-25","2027-02-24","KAPADOKYA HAVALİMANI",null,"X",null,null,null,null,null,null,null,null,null,"CDIŞ.572","C Grubu","Dış","Daimi"]
[497,"UNIVERSAL HAVACILIK ANONİM ŞİRKETİ","2025-02-25","2027-02-24","MUĞLA MİLAS-BODRUM HAVALİMANI",null,"X",null,null,null,null,null,null,null,null,null,"CDIŞ.570","C Grubu","Dış","Daimi"]
[498,"UNIVERSAL HAVACILIK ANONİM ŞİRKETİ","2025-02-25","2027-02-24","MUĞLA DALAMAN HAVALİMANI",null,"X",null,null,null,null,null,null,null,null,null,"CDIŞ.573","C Grubu","Dış","Daimi"]
[499,"UNIVERSAL HAVACILIK ANONİM ŞİRKETİ","2025-02-25","2027-02-24","ANKARA ESENBOĞA HAVALİMANI",null,"X",null,null,null,null,null,null,null,null,null,"CDIŞ.571","C Grubu","Dış","Daimi"]
[500,"GÖZEN GÜVENLİK HİZMETLERİ VE TİCARET ANONİM ŞİRKETİ","2025-04-08","2027-04-07","GAZİANTEP HAVALİMANI",null,null,null,null,null,null,null,"X",null,null,null,"CDIŞ.574","C Grubu","Dış","Daimi"]
[501,"MAPLE GROUP HAVACILIK TURİZM DIŞ TİCARET ANONİM ŞİRKETİ","2025-04-24","2027-04-23","RİZE-ARTVİN HAVALİMANI",null,"X",null,null,null,null,null,null,null,null,null,"CDIŞ.575","C Grubu","Dış","Daimi"]
[""]
[""]
[""]
[""]
[""]
[""]
[""]
[""]
[""]
[""]
[""]
[""]
[""]
[{"$f":"IF(ISTEXT(B517),A516+1,\"\")","v":""}]
[""]
[""]
[""]
[""]
[""]
[""]
[""]
[""]
[""]
[""]
[""]
[""]
[""]
[""]
[""]
[""]
[""]
[""]
[""]
[""]
[""]
[""]
[""]
[""]
[""]
[""]
[""]
[""]
[""]
[""]
[""]
[""]
[""]
[""]
[""]
[""]
[""]
[""]
[""]
[""]
[""]
[""]
[""]
[""]
[""]
["",null,null,"2026-08-11"]
["",null,null,"2026-08-13"]
["",null,null,"2026-08-13"]
["",null,null,"2026-08-13"]
["",null,null,"2026-08-13"]
["",null,null,"2026-08-17"]
["",null,null,"2026-08-17"]
["",null,null,"2026-08-17"]
["",null,null,"2026-08-17"]
["",null,null,"2026-08-17"]
["",null,null,"2026-08-17"]
["",null,null,"2026-08-18"]
["",null,null,"2026-08-18"]
["",null,null,"2026-08-24"]
["",null,null,"2026-08-24"]
["",null,null,"2026-08-24"]
["",null,null,"2026-08-24"]
["",null,null,"2026-08-24"]
[{"$f":"IF(ISTEXT(B581),A580+1,\"\")","v":""},null,null,"2026-08-24"]
["",null,null,"2026-08-25"]
["",null,null,"2026-08-28"]
["",null,null,"2026-08-31"]
["",null,null,"2026-08-28"]
["",null,null,"2026-09-02"]
["",null,null,"2026-09-08"]
["",null,null,"2026-09-08"]
["",null,null,"2026-09-08"]
[""]
[""]
[""]
[""]
[""]
["",null,null,"2022-05-09"]
["",null,null,"2022-05-09"]
["",null,null,"2026-09-08"]
["",null,null,"2022-08-23"]
["",null,null,"2022-06-10"]
["",null,null,"2022-08-23"]
["",null,null,"2022-12-05"]
["",null,null,"2023-03-30"]
["",null,null,"2023-07-05"]
[""]
["",null,null,"2023-05-05"]
["",null,null,"2023-06-29"]
["",null,null,"2022-12-12"]
["",null,null,"2023-03-30"]
["",null,null,"2023-03-30"]
["",null,null,"2023-03-30"]
["",null,null,"2023-03-31"]
["",null,null,"2024-10-07"]
["",null,null,"2024-10-02"]
["",null,null,"2023-10-24"]
["",null,null,"2025-01-30"]
["",null,null,"2026-09-10"]
[""]
[""]
[""]
[""]
[""]
[""]
[""]
[""]
[""]
[""]
[""]
[""]
[""]
[""]
[""]
[""]
[""]
[""]
[""]
[""]
[""]
[""]
[""]
[""]
[""]
[""]
[""]
[""]
[{"$f":"IF(ISTEXT(B645),A644+1,\"\")","v":""}]
[""]
[""]
[""]
[""]
[""]
[""]
[""]
[""]
[""]
[""]
[""]
[""]
[""]
[""]
[""]
[""]
[""]
[""]
[""]
[""]
[""]
[""]
[""]
[""]
[""]
[""]
[""]
[""]
[""]
[""]
[""]
[""]
[""]
[""]
[""]
[""]
[""]
[""]
[""]
[""]
[""]
[""]
[""]
[""]
[""]
[""]
[""]
[""]
[""]
[""]
[""]
[""]
[""]
[""]
[""]
[""]
[""]
[""]
[""]
[""]
[""]
[""]
[""]
[{"$f":"IF(ISTEXT(B709),A708+1,\"\")","v":""}]
[""]
[""]
[""]
[""]
[""]
[""]
[""]
[""]
[""]
[""]
[""]
[""]
[""]
[""]
[""]
[""]
[""]
[""]
[""]
[""]
[""]
[""]
[""]
[""]
[""]
[""]
[""]
[""]
[""]
[""]
[""]
[""]
[""]
[""]
[""]
[""]
[""]
[""]
[""]
[""]
[""]
[""]
[""]
[""]
[""]
[""]
[""]
[""]
[""]
[""]
[""]
[""]
[""]
[""]
[""]
[""]
[""]
[""]
[""]
[""]
[""]
[""]
[""]
[{"$f":"IF(ISTEXT(B773),A772+1,\"\")","v":""}]
[""]
[""]
[""]
[""]
[""]
[""]
[""]
[""]
[""]
[""]
[""]
[""]
[""]
[""]
[""]
[""]
[""]
[""]
[""]
[""]
[""]
[""]
[""]
[""]
[""]
[""]
[""]
[""]
[""]
[""]
[""]
[""]
[""]
[""]
[""]
[""]
[""]
[""]
[""]
[""]
[""]
[""]
[""]
[""]
[""]
[""]
[""]
[""]
[""]
[""]
[""]
[""]
[""]
[""]
[""]
[""]
[""]
[""]
[""]
[""]
[""]
[""]
[""]
[{"$f":"IF(ISTEXT(B837),A836+1,\"\")","v":""}]
[""]
[""]
[""]
[""]
[""]
[""]
[""]
[""]
[""]
[""]
[""]
[""]
[""]
[""]
[""]
[""]
[""]
[""]
[""]
[""]
[""]
[""]
[""]
[""]
[""]
[""]
[""]
[""]
[""]
[""]
[""]
[""]
[""]
[""]
[""]
[""]
[""]
[""]
[""]
[""]
[""]
[""]
[""]
[""]
[""]
[""]
[""]
[""]
[""]
[""]
[""]
[""]
[""]
[""]
[""]
[""]
[""]
[""]
[""]
[""]
[""]
[""]
[""]
[{"$f":"IF(ISTEXT(B901),A900+1,\"\")","v":""}]
[""]
[""]
[""]
[""]
[""]
[""]
[""]
[""]
[""]
[""]
[""]
[""]
[""]
[""]
[""]
[""]
[""]
[""]
[""]
[""]
[""]
[""]
[""]
[""]
[""]
[""]
[""]
[""]
[""]
[""]
[""]
[""]
[""]
[""]
[""]
[""]
[""]
[""]
[""]
[""]
[""]
[""]
[""]
[""]
[""]
[""]
[""]
[""]
[""]
[""]
[""]
[""]
[""]
[""]
[""]
[""]
[""]
[""]
[""]
[""]
[""]
[""]
[""]
[{"$f":"IF(ISTEXT(B965),A964+1,\"\")","v":""}]
[""]
[""]
[""]
[""]
[""]
[""]
[""]
[""]
[""]
[""]
[""]
[""]
[""]
[""]
[""]
[""]
[""]
[""]
[""]
[""]
[""]
[""]
[""]
[""]
[""]
[""]
[""]
[""]
[""]
[""]
[""]
[""]
[""]
[""]
[""]